Body Name,Body,Service division categorisation,Expense Type,Date paid,Transaction Reference,Net,Supplier Name,Redacted/Excluded
East Lindsey District Council,http://statistics.data.gov.uk/id/local-authority/32UC,Meridian Facility Manager,Other Private Contractors,07/02/13,IJ00018719,53.05,BIFFA WASTE SERVICES LTD, 
East Lindsey District Council,http://statistics.data.gov.uk/id/local-authority/32UC,Sports Centre Manager,Other Private Contractors,07/02/13,IJ00018719,53.05,BIFFA WASTE SERVICES LTD, 
East Lindsey District Council,http://statistics.data.gov.uk/id/local-authority/32UC,Theatre Manager,Other Private Contractors,07/02/13,IJ00018719,36.25,BIFFA WASTE SERVICES LTD, 
East Lindsey District Council,http://statistics.data.gov.uk/id/local-authority/32UC,Embassy Pool Manager,Other Private Contractors,07/02/13,IJ00018719,265.25,BIFFA WASTE SERVICES LTD, 
East Lindsey District Council,http://statistics.data.gov.uk/id/local-authority/32UC,Policy & Project Manager,Other Private Contractors,07/02/13,IJ00018719,53.05,BIFFA WASTE SERVICES LTD, 
East Lindsey District Council,http://statistics.data.gov.uk/id/local-authority/32UC,Policy & Project Manager,Other Private Contractors,07/02/13,IJ00018719,53.05,BIFFA WASTE SERVICES LTD, 
East Lindsey District Council,http://statistics.data.gov.uk/id/local-authority/32UC,TL Property,Other Private Contractors,07/02/13,IJ00018719,53.05,BIFFA WASTE SERVICES LTD, 
East Lindsey District Council,http://statistics.data.gov.uk/id/local-authority/32UC,TL Property,Other Private Contractors,07/02/13,IJ00018719,204.2,BIFFA WASTE SERVICES LTD, 
East Lindsey District Council,http://statistics.data.gov.uk/id/local-authority/32UC,TL Property,Other Private Contractors,07/02/13,IJ00018719,53.05,BIFFA WASTE SERVICES LTD, 
East Lindsey District Council,http://statistics.data.gov.uk/id/local-authority/32UC,Theatre Manager,Other Private Contractors,07/02/13,IJ00018719,106.1,BIFFA WASTE SERVICES LTD, 
East Lindsey District Council,http://statistics.data.gov.uk/id/local-authority/32UC,Policy & Project Manager,Other Private Contractors,07/02/13,IJ00018719,53.05,BIFFA WASTE SERVICES LTD, 
East Lindsey District Council,http://statistics.data.gov.uk/id/local-authority/32UC,Horncastle Pool Manager,Other Private Contractors,07/02/13,IJ00018719,212.2,BIFFA WASTE SERVICES LTD, 
East Lindsey District Council,http://statistics.data.gov.uk/id/local-authority/32UC,Waste Services Manager,Tyres,07/02/13,IJ00018647,662.62,B A BUSH & SON LIMITED, 
East Lindsey District Council,http://statistics.data.gov.uk/id/local-authority/32UC,Embassy Pool Manager,Other Miscellaneous Expenses,07/02/13,IJ00018671,4842.87,COMPETITION LINE (UK) LTD, 
East Lindsey District Council,http://statistics.data.gov.uk/id/local-authority/32UC,Embassy Pool Manager,Other Miscellaneous Expenses,07/02/13,IJ00018672,4794.47,COMPETITION LINE (UK) LTD, 
East Lindsey District Council,http://statistics.data.gov.uk/id/local-authority/32UC,Theatre Manager,Postages,07/02/13,IJ00018705,600,POSTAGE BY PHONE - PITNEY BOWES PLC, 
East Lindsey District Council,http://statistics.data.gov.uk/id/local-authority/32UC,Collection Fund,Precept - Lincolnshire Police,07/02/13,IJ00018654,893833.25,LOCAL POLICE AUTHORITY FUND ACCOUNT, 
East Lindsey District Council,http://statistics.data.gov.uk/id/local-authority/32UC,Policy & Project Manager,Grants and Contributions to Outside Bodies- No Service Recei,07/02/13,IJ00018699,1401.25,LINCS FM PLC, 
East Lindsey District Council,http://statistics.data.gov.uk/id/local-authority/32UC,Theatre Manager,Other Miscellaneous Expenses,07/02/13,IJ00018708,547.12,SKEGNESS CREAM ICE CO LTD, 
East Lindsey District Council,http://statistics.data.gov.uk/id/local-authority/32UC,Capital WIP,Works to Buildings (Sub Contractors),07/02/13,IJ00018633,6320.06,KENMOR BUILDING & CONSTRUCTION SERVICES, 
East Lindsey District Council,http://statistics.data.gov.uk/id/local-authority/32UC,TL Partnerships & Grants,Grants and Contributions to Outside Bodies- No Service Recei,07/02/13,IJ00018535,1127.07,ALFORD SPORTS HALL, 
East Lindsey District Council,http://statistics.data.gov.uk/id/local-authority/32UC,Policy & Project Manager,Postages,07/02/13,IJ00018594,750,ROYAL MAIL, 
East Lindsey District Council,http://statistics.data.gov.uk/id/local-authority/32UC,Corporate Accounting,Banking Charges,07/02/13,IJ00018694,1171.24,LOCAL GOVERNMENT ASSOCIATION, 
East Lindsey District Council,http://statistics.data.gov.uk/id/local-authority/32UC,TL Partnerships & Grants,Grants and Contributions to Outside Bodies- No Service Recei,07/02/13,IJ00018584,8000,HOLTON LE CLAY PARISH COUNCIL, 
East Lindsey District Council,http://statistics.data.gov.uk/id/local-authority/32UC,Collection Fund,Precept- Lincolnshire County Council,07/02/13,IJ00018655,5110516,LINCOLNSHIRE COUNTY COUNCIL, 
East Lindsey District Council,http://statistics.data.gov.uk/id/local-authority/32UC,Democracy Manager,Grants and Contributions to Outside Bodies- No Service Recei,07/02/13,IJ00018582,1000,LINCOLNSHIRE COUNTY COUNCIL, 
East Lindsey District Council,http://statistics.data.gov.uk/id/local-authority/32UC,Waste Services Manager,Fuel & Oil,07/02/13,IJ00018557,3406.5,WATSON PETROLEUM LTD, 
East Lindsey District Council,http://statistics.data.gov.uk/id/local-authority/32UC,Waste Services Manager,Fuel & Oil,07/02/13,IJ00018558,24975.32,WATSON PETROLEUM LTD, 
East Lindsey District Council,http://statistics.data.gov.uk/id/local-authority/32UC,Area Working,Fuel & Oil,07/02/13,IJ00018576,682.5,WATSON PETROLEUM LTD, 
East Lindsey District Council,http://statistics.data.gov.uk/id/local-authority/32UC,TL IT - System Support,Computer Software Licence Costs,07/02/13,IJ00018549,553,CROWN COMPUTING LIMITED, 
East Lindsey District Council,http://statistics.data.gov.uk/id/local-authority/32UC,Capital WIP,Grants and Contributions to Outside Bodies- No Service Recei,07/02/13,IJ00018718,4899.13,KES BUILDING MAINTENANCE LTD, 
East Lindsey District Council,http://statistics.data.gov.uk/id/local-authority/32UC,Hsg Private Sector TL,Other Income,07/02/13,IJ00018718,-437.42,KES BUILDING MAINTENANCE LTD, 
East Lindsey District Council,http://statistics.data.gov.uk/id/local-authority/32UC,Capital WIP,Grants and Contributions to Outside Bodies- No Service Recei,07/02/13,IJ00018723,5557.09,KES BUILDING MAINTENANCE LTD, 
East Lindsey District Council,http://statistics.data.gov.uk/id/local-authority/32UC,Hsg Private Sector TL,Other Income,07/02/13,IJ00018723,-496.17,KES BUILDING MAINTENANCE LTD, 
East Lindsey District Council,http://statistics.data.gov.uk/id/local-authority/32UC,TL Property,Buildings Maintenance - Programmed,07/02/13,IJ00018632,905.49,AVERY WEIGH TRONIX, 
East Lindsey District Council,http://statistics.data.gov.uk/id/local-authority/32UC,TL IT - Infrastructure,Computer Software Licence Costs,07/02/13,IJ00018547,1450,PHOENIX SOFTWARE LIMITED, 
East Lindsey District Council,http://statistics.data.gov.uk/id/local-authority/32UC,TL IT - System Support,Computer Software Licence Costs,07/02/13,IJ00018550,17860.63,CIT GROUP (UK) LIMITED, 
East Lindsey District Council,http://statistics.data.gov.uk/id/local-authority/32UC,Performance Monitoring Manager,Other Private Contractors,07/02/13,IJ00018486,2056,SMSR, 
East Lindsey District Council,http://statistics.data.gov.uk/id/local-authority/32UC,Corporate Accounting,Non -Ringfenced Government Grants - RSG,07/02/13,IJ00018657,-47784,DEPARTMENT FOR COMMUNITIES AND LOCAL, 
East Lindsey District Council,http://statistics.data.gov.uk/id/local-authority/32UC,Collection Fund,Payment to NNDR Pool,07/02/13,IJ00018657,313573,DEPARTMENT FOR COMMUNITIES AND LOCAL, 
East Lindsey District Council,http://statistics.data.gov.uk/id/local-authority/32UC,Corporate Accounting,Non Domestic Rates,07/02/13,IJ00018657,-123253,DEPARTMENT FOR COMMUNITIES AND LOCAL, 
East Lindsey District Council,http://statistics.data.gov.uk/id/local-authority/32UC,Waste Services Manager,Agency Staff,07/02/13,IJ00018645,2847.06,CLOSE INVOICE FINANCE LTD, 
East Lindsey District Council,http://statistics.data.gov.uk/id/local-authority/32UC,Enforcement Team Leader,Other Miscellaneous Expenses,07/02/13,IJ00018482,2893,CALE BRIPARC, 
East Lindsey District Council,http://statistics.data.gov.uk/id/local-authority/32UC,Meridian Facility Manager,Telephones,07/02/13,IJ00018729,165,MULTIDATA (EUROPE), 
East Lindsey District Council,http://statistics.data.gov.uk/id/local-authority/32UC,Policy & Project Manager,Telephones,07/02/13,IJ00018729,585,MULTIDATA (EUROPE), 
East Lindsey District Council,http://statistics.data.gov.uk/id/local-authority/32UC,Policy & Project Manager,Internet Broadband Payments,07/02/13,IJ00018729,647.16,MULTIDATA (EUROPE), 
East Lindsey District Council,http://statistics.data.gov.uk/id/local-authority/32UC,Policy & Project Manager,Internet Broadband Payments,07/02/13,IJ00018729,647.16,MULTIDATA (EUROPE), 
East Lindsey District Council,http://statistics.data.gov.uk/id/local-authority/32UC,TL IT - System Support,Computer Software Licence Costs,07/02/13,IJ00018529,709.53,IDS, 
East Lindsey District Council,http://statistics.data.gov.uk/id/local-authority/32UC,Capital WIP,Grants and Contributions to Outside Bodies- No Service Recei,07/02/13,IJ00018725,4294.08,RODDEN & COOPER, 
East Lindsey District Council,http://statistics.data.gov.uk/id/local-authority/32UC,Hsg Private Sector TL,Other Income,07/02/13,IJ00018725,-383.4,RODDEN & COOPER, 
East Lindsey District Council,http://statistics.data.gov.uk/id/local-authority/32UC,Policy & Project Manager,Buildings Maintenance - Programmed,07/02/13,IJ00018662,572,AEGIS SERVICE & AFTERCARE LTD, 
East Lindsey District Council,http://statistics.data.gov.uk/id/local-authority/32UC,TL Property,Buildings Maintenance - Programmed,07/02/13,IJ00018663,1049,AEGIS SERVICE & AFTERCARE LTD, 
East Lindsey District Council,http://statistics.data.gov.uk/id/local-authority/32UC,Theatre Manager,Buildings Maintenance - Programmed,07/02/13,IJ00018664,938,AEGIS SERVICE & AFTERCARE LTD, 
East Lindsey District Council,http://statistics.data.gov.uk/id/local-authority/32UC,TL Partnerships & Grants,Grants and Contributions to Outside Bodies- No Service Recei,07/02/13,IJ00018532,13900,EAST LINDSEY CITIZENS ADVICE BUREAU, 
East Lindsey District Council,http://statistics.data.gov.uk/id/local-authority/32UC,Hsg Advice & Homelessness TL,Grants and Contributions to Outside Bodies- No Service Recei,07/02/13,IJ00018533,2500,EAST LINDSEY CITIZENS ADVICE BUREAU, 
East Lindsey District Council,http://statistics.data.gov.uk/id/local-authority/32UC,Hsg Advice & Homelessness TL,Grants and Contributions to Outside Bodies- No Service Recei,07/02/13,IJ00018534,2500,EAST LINDSEY CITIZENS ADVICE BUREAU, 
East Lindsey District Council,http://statistics.data.gov.uk/id/local-authority/32UC,Area Working,Agency Staff,07/02/13,IJ00018588,595.73,THE WORKSHOP (WISBECH) LIMITED, 
East Lindsey District Council,http://statistics.data.gov.uk/id/local-authority/32UC,Area Working,Agency Staff,07/02/13,IJ00018588,595.72,THE WORKSHOP (WISBECH) LIMITED, 
East Lindsey District Council,http://statistics.data.gov.uk/id/local-authority/32UC,Democracy Manager,Grants and Contributions to Outside Bodies- No Service Recei,07/02/13,IJ00018573,830,WINTHORPE YOUTH & RESIDENTS ASSOC, 
East Lindsey District Council,http://statistics.data.gov.uk/id/local-authority/32UC,Meridian Facility Manager,Professional & Contractors Fees,07/02/13,IJ00018559,945,DONNA MAHER, 
East Lindsey District Council,http://statistics.data.gov.uk/id/local-authority/32UC,TL IT - Infrastructure,Computer Hardware Maintenance,07/02/13,IJ00018528,647.5,RESOLUTION GB LTD, 
East Lindsey District Council,http://statistics.data.gov.uk/id/local-authority/32UC,Council Tax TL,Court Costs,07/02/13,IJ00018475,1062,CENTRAL FINANCE UNIT, 
East Lindsey District Council,http://statistics.data.gov.uk/id/local-authority/32UC,Debt Recovery TL,Court Costs,07/02/13,IJ00018475,144,CENTRAL FINANCE UNIT, 
East Lindsey District Council,http://statistics.data.gov.uk/id/local-authority/32UC,Democracy Manager,Grants and Contributions to Outside Bodies- No Service Recei,07/02/13,IJ00018580,800,MABLETHORPE AREA PARTNERSHIP, 
East Lindsey District Council,http://statistics.data.gov.uk/id/local-authority/32UC,TL Partnerships & Grants,Grants and Contributions to Outside Bodies- No Service Recei,07/02/13,IJ00018578,2000,TEAM PARISH OF LOUTH, 
East Lindsey District Council,http://statistics.data.gov.uk/id/local-authority/32UC,TL Property,Professional & Contractors Fees,07/02/13,IJ00018673,1080,FOCUS CONSULTANTS 2010 LLP, 
East Lindsey District Council,http://statistics.data.gov.uk/id/local-authority/32UC,TL Property,Buildings Maintenance - Responsive,07/02/13,IJ00018651,20,J TOMLINSON LTD, 
East Lindsey District Council,http://statistics.data.gov.uk/id/local-authority/32UC,TL Property,Buildings Maintenance - Responsive,07/02/13,IJ00018651,84.01,J TOMLINSON LTD, 
East Lindsey District Council,http://statistics.data.gov.uk/id/local-authority/32UC,TL Property,Buildings Maintenance - Responsive,07/02/13,IJ00018651,20.92,J TOMLINSON LTD, 
East Lindsey District Council,http://statistics.data.gov.uk/id/local-authority/32UC,Policy & Project Manager,Buildings Maintenance - Responsive,07/02/13,IJ00018651,26.15,J TOMLINSON LTD, 
East Lindsey District Council,http://statistics.data.gov.uk/id/local-authority/32UC,Policy & Project Manager,Buildings Maintenance - Responsive,07/02/13,IJ00018651,83.68,J TOMLINSON LTD, 
East Lindsey District Council,http://statistics.data.gov.uk/id/local-authority/32UC,Policy & Project Manager,Buildings Maintenance - Responsive,07/02/13,IJ00018651,31.38,J TOMLINSON LTD, 
East Lindsey District Council,http://statistics.data.gov.uk/id/local-authority/32UC,Building Control,Buildings Maintenance - Responsive,07/02/13,IJ00018651,115.29,J TOMLINSON LTD, 
East Lindsey District Council,http://statistics.data.gov.uk/id/local-authority/32UC,Building Control,Buildings Maintenance - Responsive,07/02/13,IJ00018651,184.18,J TOMLINSON LTD, 
East Lindsey District Council,http://statistics.data.gov.uk/id/local-authority/32UC,Building Control,Buildings Maintenance - Responsive,07/02/13,IJ00018651,26.15,J TOMLINSON LTD, 
East Lindsey District Council,http://statistics.data.gov.uk/id/local-authority/32UC,Embassy Pool Manager,Buildings Maintenance - Responsive,07/02/13,IJ00018651,225.11,J TOMLINSON LTD, 
East Lindsey District Council,http://statistics.data.gov.uk/id/local-authority/32UC,Embassy Pool Manager,Buildings Maintenance - Responsive,07/02/13,IJ00018651,310.43,J TOMLINSON LTD, 
East Lindsey District Council,http://statistics.data.gov.uk/id/local-authority/32UC,Meridian Facility Manager,Buildings Maintenance - Responsive,07/02/13,IJ00018651,435.74,J TOMLINSON LTD, 
East Lindsey District Council,http://statistics.data.gov.uk/id/local-authority/32UC,Meridian Facility Manager,Buildings Maintenance - Responsive,07/02/13,IJ00018651,74.4,J TOMLINSON LTD, 
East Lindsey District Council,http://statistics.data.gov.uk/id/local-authority/32UC,TL Property,Buildings Maintenance - Responsive,07/02/13,IJ00018651,227.96,J TOMLINSON LTD, 
East Lindsey District Council,http://statistics.data.gov.uk/id/local-authority/32UC,Service Development Manager,Buildings Maintenance - Responsive,07/02/13,IJ00018651,120.29,J TOMLINSON LTD, 
East Lindsey District Council,http://statistics.data.gov.uk/id/local-authority/32UC,Service Development Manager,Buildings Maintenance - Responsive,07/02/13,IJ00018651,26.15,J TOMLINSON LTD, 
East Lindsey District Council,http://statistics.data.gov.uk/id/local-authority/32UC,Technical Services Team Leader,Buildings Maintenance - Programmed,07/02/13,IJ00018651,3362.89,J TOMLINSON LTD, 
East Lindsey District Council,http://statistics.data.gov.uk/id/local-authority/32UC,Theatre Manager,Buildings Maintenance - Responsive,07/02/13,IJ00018651,78.45,J TOMLINSON LTD, 
East Lindsey District Council,http://statistics.data.gov.uk/id/local-authority/32UC,TL Property,Buildings Maintenance - Responsive,07/02/13,IJ00018651,259.97,J TOMLINSON LTD, 
East Lindsey District Council,http://statistics.data.gov.uk/id/local-authority/32UC,TL Property,Buildings Maintenance - Responsive,07/02/13,IJ00018651,623.45,J TOMLINSON LTD, 
East Lindsey District Council,http://statistics.data.gov.uk/id/local-authority/32UC,TL Property,Buildings Maintenance - Responsive,07/02/13,IJ00018651,250.77,J TOMLINSON LTD, 
East Lindsey District Council,http://statistics.data.gov.uk/id/local-authority/32UC,Enforcement Team Leader,Buildings Maintenance - Responsive,07/02/13,IJ00018651,235.35,J TOMLINSON LTD, 
East Lindsey District Council,http://statistics.data.gov.uk/id/local-authority/32UC,TL Property,Buildings Maintenance - Responsive,07/02/13,IJ00018651,285.67,J TOMLINSON LTD, 
East Lindsey District Council,http://statistics.data.gov.uk/id/local-authority/32UC,Enforcement Team Leader,Buildings Maintenance - Responsive,07/02/13,IJ00018651,20,J TOMLINSON LTD, 
East Lindsey District Council,http://statistics.data.gov.uk/id/local-authority/32UC,Theatre Manager,Buildings Maintenance - Responsive,07/02/13,IJ00018651,113.17,J TOMLINSON LTD, 
East Lindsey District Council,http://statistics.data.gov.uk/id/local-authority/32UC,Theatre Manager,Buildings Maintenance - Responsive,07/02/13,IJ00018651,561.56,J TOMLINSON LTD, 
East Lindsey District Council,http://statistics.data.gov.uk/id/local-authority/32UC,Technical Services Team Leader,Buildings Maintenance - Responsive,07/02/13,IJ00018651,184.61,J TOMLINSON LTD, 
East Lindsey District Council,http://statistics.data.gov.uk/id/local-authority/32UC,Service Development Manager,Buildings Maintenance - Responsive,07/02/13,IJ00018651,41.84,J TOMLINSON LTD, 
East Lindsey District Council,http://statistics.data.gov.uk/id/local-authority/32UC,Corporate Accounting,Professional & Contractors Fees,07/02/13,IJ00018651,146.44,J TOMLINSON LTD, 
East Lindsey District Council,http://statistics.data.gov.uk/id/local-authority/32UC,Enforcement Team Leader,Buildings Maintenance - Responsive,07/02/13,IJ00018651,73.22,J TOMLINSON LTD, 
East Lindsey District Council,http://statistics.data.gov.uk/id/local-authority/32UC,Service Development Manager,Buildings Maintenance - Responsive,07/02/13,IJ00018651,26.15,J TOMLINSON LTD, 
East Lindsey District Council,http://statistics.data.gov.uk/id/local-authority/32UC,Theatre Manager,Buildings Maintenance - Responsive,07/02/13,IJ00018651,83.68,J TOMLINSON LTD, 
East Lindsey District Council,http://statistics.data.gov.uk/id/local-authority/32UC,Enforcement Team Leader,Car Parking Charges,07/02/13,IJ00018651,377.62,J TOMLINSON LTD, 
East Lindsey District Council,http://statistics.data.gov.uk/id/local-authority/32UC,Theatre Manager,Buildings Maintenance - Responsive,07/02/13,IJ00018651,41.84,J TOMLINSON LTD, 
East Lindsey District Council,http://statistics.data.gov.uk/id/local-authority/32UC,Service Development Manager,Buildings Maintenance - Responsive,07/02/13,IJ00018651,41.84,J TOMLINSON LTD, 
East Lindsey District Council,http://statistics.data.gov.uk/id/local-authority/32UC,Service Development Manager,Buildings Maintenance - Responsive,07/02/13,IJ00018651,36.61,J TOMLINSON LTD, 
East Lindsey District Council,http://statistics.data.gov.uk/id/local-authority/32UC,TL Property,Buildings Maintenance - Responsive,07/02/13,IJ00018651,73.22,J TOMLINSON LTD, 
East Lindsey District Council,http://statistics.data.gov.uk/id/local-authority/32UC,Enforcement Team Leader,Buildings Maintenance - Responsive,07/02/13,IJ00018651,449.26,J TOMLINSON LTD, 
East Lindsey District Council,http://statistics.data.gov.uk/id/local-authority/32UC,TL Property,Buildings Maintenance - Responsive,07/02/13,IJ00018651,172.59,J TOMLINSON LTD, 
East Lindsey District Council,http://statistics.data.gov.uk/id/local-authority/32UC,Enforcement Team Leader,Buildings Maintenance - Responsive,07/02/13,IJ00018651,421.41,J TOMLINSON LTD, 
East Lindsey District Council,http://statistics.data.gov.uk/id/local-authority/32UC,Enforcement Team Leader,Buildings Maintenance - Responsive,07/02/13,IJ00018651,20,J TOMLINSON LTD, 
East Lindsey District Council,http://statistics.data.gov.uk/id/local-authority/32UC,Public Conveniences,Buildings Maintenance - Responsive,07/02/13,IJ00018651,20.92,J TOMLINSON LTD, 
East Lindsey District Council,http://statistics.data.gov.uk/id/local-authority/32UC,Public Conveniences,Buildings Maintenance - Responsive,07/02/13,IJ00018651,26.15,J TOMLINSON LTD, 
East Lindsey District Council,http://statistics.data.gov.uk/id/local-authority/32UC,Public Conveniences,Buildings Maintenance - Responsive,07/02/13,IJ00018651,190.16,J TOMLINSON LTD, 
East Lindsey District Council,http://statistics.data.gov.uk/id/local-authority/32UC,Public Conveniences,Buildings Maintenance - Responsive,07/02/13,IJ00018651,165.01,J TOMLINSON LTD, 
East Lindsey District Council,http://statistics.data.gov.uk/id/local-authority/32UC,Public Conveniences,Buildings Maintenance - Responsive,07/02/13,IJ00018651,20,J TOMLINSON LTD, 
East Lindsey District Council,http://statistics.data.gov.uk/id/local-authority/32UC,Public Conveniences,Buildings Maintenance - Responsive,07/02/13,IJ00018651,20.92,J TOMLINSON LTD, 
East Lindsey District Council,http://statistics.data.gov.uk/id/local-authority/32UC,Public Conveniences,Buildings Maintenance - Responsive,07/02/13,IJ00018651,73.22,J TOMLINSON LTD, 
East Lindsey District Council,http://statistics.data.gov.uk/id/local-authority/32UC,Public Conveniences,Buildings Maintenance - Responsive,07/02/13,IJ00018651,48.44,J TOMLINSON LTD, 
East Lindsey District Council,http://statistics.data.gov.uk/id/local-authority/32UC,Public Conveniences,Buildings Maintenance - Responsive,07/02/13,IJ00018651,41.84,J TOMLINSON LTD, 
East Lindsey District Council,http://statistics.data.gov.uk/id/local-authority/32UC,Public Conveniences,Buildings Maintenance - Responsive,07/02/13,IJ00018651,20,J TOMLINSON LTD, 
East Lindsey District Council,http://statistics.data.gov.uk/id/local-authority/32UC,Public Conveniences,Buildings Maintenance - Responsive,07/02/13,IJ00018651,88.91,J TOMLINSON LTD, 
East Lindsey District Council,http://statistics.data.gov.uk/id/local-authority/32UC,Public Conveniences,Buildings Maintenance - Responsive,07/02/13,IJ00018651,99.68,J TOMLINSON LTD, 
East Lindsey District Council,http://statistics.data.gov.uk/id/local-authority/32UC,Public Conveniences,Buildings Maintenance - Responsive,07/02/13,IJ00018651,118.83,J TOMLINSON LTD, 
East Lindsey District Council,http://statistics.data.gov.uk/id/local-authority/32UC,Public Conveniences,Buildings Maintenance - Responsive,07/02/13,IJ00018651,59.27,J TOMLINSON LTD, 
East Lindsey District Council,http://statistics.data.gov.uk/id/local-authority/32UC,Public Conveniences,Buildings Maintenance - Responsive,07/02/13,IJ00018651,36.61,J TOMLINSON LTD, 
East Lindsey District Council,http://statistics.data.gov.uk/id/local-authority/32UC,Public Conveniences,Buildings Maintenance - Responsive,07/02/13,IJ00018651,223.78,J TOMLINSON LTD, 
East Lindsey District Council,http://statistics.data.gov.uk/id/local-authority/32UC,Public Conveniences,Buildings Maintenance - Responsive,07/02/13,IJ00018651,51.58,J TOMLINSON LTD, 
East Lindsey District Council,http://statistics.data.gov.uk/id/local-authority/32UC,Public Conveniences,Buildings Maintenance - Responsive,07/02/13,IJ00018651,20.92,J TOMLINSON LTD, 
East Lindsey District Council,http://statistics.data.gov.uk/id/local-authority/32UC,Business Development Manager,Buildings Maintenance - Responsive,07/02/13,IJ00018652,138,J TOMLINSON LTD, 
East Lindsey District Council,http://statistics.data.gov.uk/id/local-authority/32UC,Business Development Manager,Buildings Maintenance - Responsive,07/02/13,IJ00018652,155.03,J TOMLINSON LTD, 
East Lindsey District Council,http://statistics.data.gov.uk/id/local-authority/32UC,Business Development Manager,Buildings Maintenance - Responsive,07/02/13,IJ00018652,78.45,J TOMLINSON LTD, 
East Lindsey District Council,http://statistics.data.gov.uk/id/local-authority/32UC,TL Property,Buildings Maintenance - Responsive,07/02/13,IJ00018652,20,J TOMLINSON LTD, 
East Lindsey District Council,http://statistics.data.gov.uk/id/local-authority/32UC,TL Property,Buildings Maintenance - Responsive,07/02/13,IJ00018652,1094.56,J TOMLINSON LTD, 
East Lindsey District Council,http://statistics.data.gov.uk/id/local-authority/32UC,Policy & Project Manager,Buildings Maintenance - Responsive,07/02/13,IJ00018652,67.96,J TOMLINSON LTD, 
East Lindsey District Council,http://statistics.data.gov.uk/id/local-authority/32UC,Building Control,Buildings Maintenance - Responsive,07/02/13,IJ00018652,47.11,J TOMLINSON LTD, 
East Lindsey District Council,http://statistics.data.gov.uk/id/local-authority/32UC,Building Control,Buildings Maintenance - Responsive,07/02/13,IJ00018652,48.01,J TOMLINSON LTD, 
East Lindsey District Council,http://statistics.data.gov.uk/id/local-authority/32UC,Building Control,Buildings Maintenance - Responsive,07/02/13,IJ00018652,88.08,J TOMLINSON LTD, 
East Lindsey District Council,http://statistics.data.gov.uk/id/local-authority/32UC,Embassy Pool Manager,Buildings Maintenance - Responsive,07/02/13,IJ00018652,236.14,J TOMLINSON LTD, 
East Lindsey District Council,http://statistics.data.gov.uk/id/local-authority/32UC,Service Development Manager,Buildings Maintenance - Responsive,07/02/13,IJ00018652,219.69,J TOMLINSON LTD, 
East Lindsey District Council,http://statistics.data.gov.uk/id/local-authority/32UC,TL Property,Buildings Maintenance - Responsive,07/02/13,IJ00018652,572.04,J TOMLINSON LTD, 
East Lindsey District Council,http://statistics.data.gov.uk/id/local-authority/32UC,TL Property,Buildings Maintenance - Responsive,07/02/13,IJ00018652,99.54,J TOMLINSON LTD, 
East Lindsey District Council,http://statistics.data.gov.uk/id/local-authority/32UC,Enforcement Team Leader,Buildings Maintenance - Responsive,07/02/13,IJ00018652,167.38,J TOMLINSON LTD, 
East Lindsey District Council,http://statistics.data.gov.uk/id/local-authority/32UC,Theatre Manager,Buildings Maintenance - Responsive,07/02/13,IJ00018652,293.39,J TOMLINSON LTD, 
East Lindsey District Council,http://statistics.data.gov.uk/id/local-authority/32UC,TL Property,Buildings Maintenance - Responsive,07/02/13,IJ00018652,41.84,J TOMLINSON LTD, 
East Lindsey District Council,http://statistics.data.gov.uk/id/local-authority/32UC,TL Property,Buildings Maintenance - Responsive,07/02/13,IJ00018652,265.41,J TOMLINSON LTD, 
East Lindsey District Council,http://statistics.data.gov.uk/id/local-authority/32UC,Service Development Manager,Buildings Maintenance - Responsive,07/02/13,IJ00018652,298.11,J TOMLINSON LTD, 
East Lindsey District Council,http://statistics.data.gov.uk/id/local-authority/32UC,Sports Centre Manager,Buildings Maintenance - Responsive,07/02/13,IJ00018652,41.84,J TOMLINSON LTD, 
East Lindsey District Council,http://statistics.data.gov.uk/id/local-authority/32UC,Sports Centre Manager,Buildings Maintenance - Responsive,07/02/13,IJ00018652,96.04,J TOMLINSON LTD, 
East Lindsey District Council,http://statistics.data.gov.uk/id/local-authority/32UC,TL Property,Buildings Maintenance - Responsive,07/02/13,IJ00018652,20,J TOMLINSON LTD, 
East Lindsey District Council,http://statistics.data.gov.uk/id/local-authority/32UC,TL Property,Buildings Maintenance - Responsive,07/02/13,IJ00018652,36.61,J TOMLINSON LTD, 
East Lindsey District Council,http://statistics.data.gov.uk/id/local-authority/32UC,TL Property,Buildings Maintenance - Responsive,07/02/13,IJ00018652,398.48,J TOMLINSON LTD, 
East Lindsey District Council,http://statistics.data.gov.uk/id/local-authority/32UC,TL Property,Buildings Maintenance - Responsive,07/02/13,IJ00018652,502.19,J TOMLINSON LTD, 
East Lindsey District Council,http://statistics.data.gov.uk/id/local-authority/32UC,Public Conveniences,Buildings Maintenance - Responsive,07/02/13,IJ00018652,118.67,J TOMLINSON LTD, 
East Lindsey District Council,http://statistics.data.gov.uk/id/local-authority/32UC,Public Conveniences,Buildings Maintenance - Responsive,07/02/13,IJ00018652,41.3,J TOMLINSON LTD, 
East Lindsey District Council,http://statistics.data.gov.uk/id/local-authority/32UC,Public Conveniences,Buildings Maintenance - Responsive,07/02/13,IJ00018652,605.35,J TOMLINSON LTD, 
East Lindsey District Council,http://statistics.data.gov.uk/id/local-authority/32UC,Public Conveniences,Buildings Maintenance - Responsive,07/02/13,IJ00018652,571.36,J TOMLINSON LTD, 
East Lindsey District Council,http://statistics.data.gov.uk/id/local-authority/32UC,Public Conveniences,Buildings Maintenance - Responsive,07/02/13,IJ00018652,50.3,J TOMLINSON LTD, 
East Lindsey District Council,http://statistics.data.gov.uk/id/local-authority/32UC,Public Conveniences,Buildings Maintenance - Responsive,07/02/13,IJ00018652,759.74,J TOMLINSON LTD, 
East Lindsey District Council,http://statistics.data.gov.uk/id/local-authority/32UC,Public Conveniences,Buildings Maintenance - Responsive,07/02/13,IJ00018652,178.54,J TOMLINSON LTD, 
East Lindsey District Council,http://statistics.data.gov.uk/id/local-authority/32UC,Public Conveniences,Buildings Maintenance - Responsive,07/02/13,IJ00018652,84.05,J TOMLINSON LTD, 
East Lindsey District Council,http://statistics.data.gov.uk/id/local-authority/32UC,Public Conveniences,Buildings Maintenance - Responsive,07/02/13,IJ00018652,110.21,J TOMLINSON LTD, 
East Lindsey District Council,http://statistics.data.gov.uk/id/local-authority/32UC,Public Conveniences,Buildings Maintenance - Responsive,07/02/13,IJ00018652,122.04,J TOMLINSON LTD, 
East Lindsey District Council,http://statistics.data.gov.uk/id/local-authority/32UC,Public Conveniences,Buildings Maintenance - Responsive,07/02/13,IJ00018652,1066.54,J TOMLINSON LTD, 
East Lindsey District Council,http://statistics.data.gov.uk/id/local-authority/32UC,Public Conveniences,Buildings Maintenance - Responsive,07/02/13,IJ00018652,31.38,J TOMLINSON LTD, 
East Lindsey District Council,http://statistics.data.gov.uk/id/local-authority/32UC,Public Conveniences,Buildings Maintenance - Responsive,07/02/13,IJ00018652,20.92,J TOMLINSON LTD, 
East Lindsey District Council,http://statistics.data.gov.uk/id/local-authority/32UC,Service Development Manager,Buildings Maintenance - Responsive,07/02/13,IJ00018652,20,J TOMLINSON LTD, 
East Lindsey District Council,http://statistics.data.gov.uk/id/local-authority/32UC,Service Development Manager,Buildings Maintenance - Responsive,07/02/13,IJ00018652,90.5,J TOMLINSON LTD, 
East Lindsey District Council,http://statistics.data.gov.uk/id/local-authority/32UC,Capital WIP,Grants and Contributions to Outside Bodies- No Service Recei,07/02/13,IJ00018720,6414.16,THM CONSTRUCTION, 
East Lindsey District Council,http://statistics.data.gov.uk/id/local-authority/32UC,Hsg Private Sector TL,Other Income,07/02/13,IJ00018720,-572.69,THM CONSTRUCTION, 
East Lindsey District Council,http://statistics.data.gov.uk/id/local-authority/32UC,Capital WIP,Grants and Contributions to Outside Bodies- No Service Recei,07/02/13,IJ00018726,4394.88,THM CONSTRUCTION, 
East Lindsey District Council,http://statistics.data.gov.uk/id/local-authority/32UC,Hsg Private Sector TL,Other Income,07/02/13,IJ00018726,-392.4,THM CONSTRUCTION, 
East Lindsey District Council,http://statistics.data.gov.uk/id/local-authority/32UC,Public Conveniences,Water and Sewerage Charges,07/02/13,IJ00018668,1733.81,ANGLIAN WATER, 
East Lindsey District Council,http://statistics.data.gov.uk/id/local-authority/32UC,Policy & Project Manager,Other Miscellaneous Expenses,07/02/13,IJ00018639,80,GRS SIGN CO LTD, 
East Lindsey District Council,http://statistics.data.gov.uk/id/local-authority/32UC,TL Property,Buildings Maintenance - Responsive,07/02/13,IJ00018639,34,GRS SIGN CO LTD, 
East Lindsey District Council,http://statistics.data.gov.uk/id/local-authority/32UC,Meridian Facility Manager,External Printing and Design Costs,07/02/13,IJ00018639,39,GRS SIGN CO LTD, 
East Lindsey District Council,http://statistics.data.gov.uk/id/local-authority/32UC,Policy & Project Manager,Other Miscellaneous Expenses,07/02/13,IJ00018639,25,GRS SIGN CO LTD, 
East Lindsey District Council,http://statistics.data.gov.uk/id/local-authority/32UC,Business Development Manager,Other Miscellaneous Expenses,07/02/13,IJ00018639,1156,GRS SIGN CO LTD, 
East Lindsey District Council,http://statistics.data.gov.uk/id/local-authority/32UC,Theatre Manager,Furniture and Equipment,07/02/13,IJ00018639,1601.6,GRS SIGN CO LTD, 
East Lindsey District Council,http://statistics.data.gov.uk/id/local-authority/32UC,Area Working,Maintenance,07/02/13,IJ00018639,50,GRS SIGN CO LTD, 
East Lindsey District Council,http://statistics.data.gov.uk/id/local-authority/32UC,Area Working,Maintenance,07/02/13,IJ00018639,25,GRS SIGN CO LTD, 
East Lindsey District Council,http://statistics.data.gov.uk/id/local-authority/32UC,Capital WIP,Grants and Contributions to Outside Bodies- No Service Recei,07/02/13,IJ00018721,5202.1,MARK DONNER LTD, 
East Lindsey District Council,http://statistics.data.gov.uk/id/local-authority/32UC,Hsg Private Sector TL,Other Income,07/02/13,IJ00018721,-464.47,MARK DONNER LTD, 
East Lindsey District Council,http://statistics.data.gov.uk/id/local-authority/32UC,Area Working,Materials and Consumables,07/02/13,IJ00018525,787.83,Tennant Uk Cleaning Solutions Ltd, 
East Lindsey District Council,http://statistics.data.gov.uk/id/local-authority/32UC,Area Working,Materials and Consumables,07/02/13,IJ00018525,787.84,Tennant Uk Cleaning Solutions Ltd, 
East Lindsey District Council,http://statistics.data.gov.uk/id/local-authority/32UC,TL Partnerships & Grants,Grants and Contributions to Outside Bodies- No Service Recei,07/02/13,IJ00018530,1830,WRAGBY & DISTRICT SWIMMING CLUB, 
East Lindsey District Council,http://statistics.data.gov.uk/id/local-authority/32UC,TL Partnerships & Grants,Grants and Contributions to Outside Bodies- No Service Recei,07/02/13,IJ00018531,2911,WRAGBY & DISTRICT SWIMMING CLUB, 
East Lindsey District Council,http://statistics.data.gov.uk/id/local-authority/32UC,Commercial Team Leader,Other Private Contractors,07/02/13,IJ00018561,1187,LINCOLNSHIRE CO-OPERATIVE LTD, 
East Lindsey District Council,http://statistics.data.gov.uk/id/local-authority/32UC,Policy & Project Manager,Grants and Contributions to Outside Bodies- No Service Recei,07/02/13,IJ00018701,2762.5,LAURENCE GOULD PARTNERSHIP LIMITED, 
East Lindsey District Council,http://statistics.data.gov.uk/id/local-authority/32UC,Business Development Manager,Other Miscellaneous Expenses,07/02/13,IJ00018555,946.15,CBS OUTDOOR LIMITED, 
East Lindsey District Council,http://statistics.data.gov.uk/id/local-authority/32UC,Technical Services Team Leader,Commercial Vehicle Lease,07/02/13,IJ00018564,308.65,MAY GURNEY FLEET & PASSENGER SERVICES LTD, 
East Lindsey District Council,http://statistics.data.gov.uk/id/local-authority/32UC,Theatre Manager,Commercial Vehicle Lease,07/02/13,IJ00018564,376.97,MAY GURNEY FLEET & PASSENGER SERVICES LTD, 
East Lindsey District Council,http://statistics.data.gov.uk/id/local-authority/32UC,Area Working,Commercial Vehicle Lease,07/02/13,IJ00018564,5204.83,MAY GURNEY FLEET & PASSENGER SERVICES LTD, 
East Lindsey District Council,http://statistics.data.gov.uk/id/local-authority/32UC,Area Working,Commercial Vehicle Lease,07/02/13,IJ00018564,10409.66,MAY GURNEY FLEET & PASSENGER SERVICES LTD, 
East Lindsey District Council,http://statistics.data.gov.uk/id/local-authority/32UC,Area Working,Maintenance,07/02/13,IJ00018683,677.58,MAY GURNEY FLEET & PASSENGER SERVICES LTD, 
East Lindsey District Council,http://statistics.data.gov.uk/id/local-authority/32UC,Cultural & Related Services,Other Miscellaneous Expenses,07/02/13,IJ00018722,11323.36,GARSINGTON OPERA LTD, 
East Lindsey District Council,http://statistics.data.gov.uk/id/local-authority/32UC,Democracy Manager,Grants and Contributions to Outside Bodies- No Service Recei,07/02/13,IJ00018579,500,HONEYSUCKLE CLUB, 
East Lindsey District Council,http://statistics.data.gov.uk/id/local-authority/32UC,TL Partnerships & Grants,Other agencies,07/02/13,IJ00018543,12500,LINCOLNSHIRE CVS, 
East Lindsey District Council,http://statistics.data.gov.uk/id/local-authority/32UC,TL Property,Staff Training Expenses,07/02/13,IJ00018622,600,Lincsafe(Health and Safety) Ltd, 
East Lindsey District Council,http://statistics.data.gov.uk/id/local-authority/32UC,Building Control,Professional & Contractors Fees,07/02/13,IJ00018483,2145,York Sills Ltd, 
East Lindsey District Council,http://statistics.data.gov.uk/id/local-authority/32UC,TL Property,Rent and Lease Payments,07/02/13,IJ00018562,2850,Louth Education Community Interest Company, 
East Lindsey District Council,http://statistics.data.gov.uk/id/local-authority/32UC,Policy & Project Manager,Grants and Contributions to Outside Bodies- No Service Recei,07/02/13,IJ00018733,500,D SIGNS LTD, 
East Lindsey District Council,http://statistics.data.gov.uk/id/local-authority/32UC,Democracy Manager,Grants and Contributions to Outside Bodies- No Service Recei,07/02/13,IJ00018536,1000,Fotherby Church, 
East Lindsey District Council,http://statistics.data.gov.uk/id/local-authority/32UC,Democracy Manager,Grants and Contributions to Outside Bodies- No Service Recei,07/02/13,IJ00018540,500,Sutton On Sea First Residents Association, 
East Lindsey District Council,http://statistics.data.gov.uk/id/local-authority/32UC,TL Partnerships & Grants,Grants and Contributions to Outside Bodies- No Service Recei,07/02/13,IJ00018577,867.5,Louth Dolphins Swimming Club, 
East Lindsey District Council,http://statistics.data.gov.uk/id/local-authority/32UC,Capital WIP,Grants and Contributions to Outside Bodies- No Service Recei,07/02/13,IJ00018728,4850,PAUL CHISAM PLUMBING, 
East Lindsey District Council,http://statistics.data.gov.uk/id/local-authority/32UC,Waste Services Manager,Tyres,14/02/13,IJ00018958,770.24,B A BUSH & SON LIMITED, 
East Lindsey District Council,http://statistics.data.gov.uk/id/local-authority/32UC,Business Development Manager,Buildings Maintenance - Responsive,14/02/13,IJ00018961,272.34,HARLITE INSTALLATIONS LTD, 
East Lindsey District Council,http://statistics.data.gov.uk/id/local-authority/32UC,Technical Services Team Leader,Buildings Maintenance - Responsive,14/02/13,IJ00018961,3135.29,HARLITE INSTALLATIONS LTD, 
East Lindsey District Council,http://statistics.data.gov.uk/id/local-authority/32UC,Horncastle Pool Manager,Buildings Maintenance - Responsive,14/02/13,IJ00018961,110.85,HARLITE INSTALLATIONS LTD, 
East Lindsey District Council,http://statistics.data.gov.uk/id/local-authority/32UC,Service Development Manager,Buildings Maintenance - Responsive,14/02/13,IJ00018961,73.96,HARLITE INSTALLATIONS LTD, 
East Lindsey District Council,http://statistics.data.gov.uk/id/local-authority/32UC,Service Development Manager,Buildings Maintenance - Responsive,14/02/13,IJ00018961,18.02,HARLITE INSTALLATIONS LTD, 
East Lindsey District Council,http://statistics.data.gov.uk/id/local-authority/32UC,Theatre Manager,Buildings Maintenance - Responsive,14/02/13,IJ00018961,291,HARLITE INSTALLATIONS LTD, 
East Lindsey District Council,http://statistics.data.gov.uk/id/local-authority/32UC,TL Property,Buildings Maintenance - Responsive,14/02/13,IJ00018961,43.77,HARLITE INSTALLATIONS LTD, 
East Lindsey District Council,http://statistics.data.gov.uk/id/local-authority/32UC,Service Development Manager,Buildings Maintenance - Responsive,14/02/13,IJ00018961,128.19,HARLITE INSTALLATIONS LTD, 
East Lindsey District Council,http://statistics.data.gov.uk/id/local-authority/32UC,Service Development Manager,Buildings Maintenance - Responsive,14/02/13,IJ00018961,285.68,HARLITE INSTALLATIONS LTD, 
East Lindsey District Council,http://statistics.data.gov.uk/id/local-authority/32UC,Service Development Manager,Buildings Maintenance - Responsive,14/02/13,IJ00018961,124.16,HARLITE INSTALLATIONS LTD, 
East Lindsey District Council,http://statistics.data.gov.uk/id/local-authority/32UC,Service Development Manager,Buildings Maintenance - Responsive,14/02/13,IJ00018961,68.7,HARLITE INSTALLATIONS LTD, 
East Lindsey District Council,http://statistics.data.gov.uk/id/local-authority/32UC,Service Development Manager,Buildings Maintenance - Programmed,14/02/13,IJ00018961,5745,HARLITE INSTALLATIONS LTD, 
East Lindsey District Council,http://statistics.data.gov.uk/id/local-authority/32UC,Service Development Manager,Buildings Maintenance - Responsive,14/02/13,IJ00018961,114.6,HARLITE INSTALLATIONS LTD, 
East Lindsey District Council,http://statistics.data.gov.uk/id/local-authority/32UC,Democracy Manager,Grants and Contributions to Outside Bodies- No Service Recei,14/02/13,IJ00018876,750,SPILSBY TOWN COUNCIL, 
East Lindsey District Council,http://statistics.data.gov.uk/id/local-authority/32UC,Chief Executive,Agency Staff,14/02/13,IJ00018850,3069.02,BOSTON BOROUGH COUNCIL, 
East Lindsey District Council,http://statistics.data.gov.uk/id/local-authority/32UC,Chief Executive,Agency Staff,14/02/13,IJ00018853,13585.46,BOSTON BOROUGH COUNCIL, 
East Lindsey District Council,http://statistics.data.gov.uk/id/local-authority/32UC,Embassy Pool Manager,Other Miscellaneous Expenses,14/02/13,IJ00018892,573.81,VENDING ENTERPRISES, 
East Lindsey District Council,http://statistics.data.gov.uk/id/local-authority/32UC,Horncastle Pool Manager,Purchase Of Goods For Resale,14/02/13,IJ00019013,661.94,VENDING ENTERPRISES, 
East Lindsey District Council,http://statistics.data.gov.uk/id/local-authority/32UC,Waste Services Manager,Other agencies,14/02/13,IJ00018861,1150.09,GLASS RECYCLING (UK) LTD, 
East Lindsey District Council,http://statistics.data.gov.uk/id/local-authority/32UC,Customer Services Manager,Rent and Lease Payments,14/02/13,IJ00018849,1231.25,LINCOLNSHIRE COUNTY COUNCIL, 
East Lindsey District Council,http://statistics.data.gov.uk/id/local-authority/32UC,Enforcement Team Leader,Professional & Contractors Fees,14/02/13,IJ00019010,1674,LINCOLNSHIRE COUNTY COUNCIL, 
East Lindsey District Council,http://statistics.data.gov.uk/id/local-authority/32UC,TL IT - System Support,Computer Software Licence Costs,14/02/13,IJ00018835,20470,GLADSTONE MRM LIMITED, 
East Lindsey District Council,http://statistics.data.gov.uk/id/local-authority/32UC,Embassy Pool Manager,Electricity,14/02/13,IJ00018950,996.15,SOUTHERN ELECTRIC PLC, 
East Lindsey District Council,http://statistics.data.gov.uk/id/local-authority/32UC,Horncastle Pool Manager,Public Courses and Workshops,14/02/13,IJ00018928,585.9,IQL UK LTD, 
East Lindsey District Council,http://statistics.data.gov.uk/id/local-authority/32UC,BALANCE  SHEET,Payroll Sacrifice Nursery Voucher,14/02/13,IJ00018989,2971,SODEXHO, 
East Lindsey District Council,http://statistics.data.gov.uk/id/local-authority/32UC,Horncastle Pool Manager,Furniture and Equipment,14/02/13,IJ00018944,97,ESPO, 
East Lindsey District Council,http://statistics.data.gov.uk/id/local-authority/32UC,Horncastle Pool Manager,Materials and Consumables,14/02/13,IJ00018944,210.59,ESPO, 
East Lindsey District Council,http://statistics.data.gov.uk/id/local-authority/32UC,Embassy Pool Manager,Cleaning Contract,14/02/13,IJ00018944,23.8,ESPO, 
East Lindsey District Council,http://statistics.data.gov.uk/id/local-authority/32UC,Horncastle Pool Manager,Cleaning Contract,14/02/13,IJ00018944,116.04,ESPO, 
East Lindsey District Council,http://statistics.data.gov.uk/id/local-authority/32UC,Area Working,Materials and Consumables,14/02/13,IJ00018944,911.2,ESPO, 
East Lindsey District Council,http://statistics.data.gov.uk/id/local-authority/32UC,Area Working,Materials and Consumables,14/02/13,IJ00018944,68.64,ESPO, 
East Lindsey District Council,http://statistics.data.gov.uk/id/local-authority/32UC,Area Working,Materials and Consumables,14/02/13,IJ00018944,311.4,ESPO, 
East Lindsey District Council,http://statistics.data.gov.uk/id/local-authority/32UC,Area Working,Materials and Consumables,14/02/13,IJ00018944,153.8,ESPO, 
East Lindsey District Council,http://statistics.data.gov.uk/id/local-authority/32UC,Theatre Manager,Performers and Entertainers Fees,14/02/13,IJ00018841,3700,TONY CLAYMAN PROMOTIONS LTD, 
East Lindsey District Council,http://statistics.data.gov.uk/id/local-authority/32UC,Theatre Manager,Performers and Entertainers Fees,14/02/13,IJ00018842,1467.62,TONY CLAYMAN PROMOTIONS LTD, 
East Lindsey District Council,http://statistics.data.gov.uk/id/local-authority/32UC,Theatre Manager,Performers and Entertainers Fees,14/02/13,IJ00018842,-210,TONY CLAYMAN PROMOTIONS LTD, 
East Lindsey District Council,http://statistics.data.gov.uk/id/local-authority/32UC,Meridian Facility Manager,Purchase Of Goods For Resale,14/02/13,IJ00018827,40.74,DEE BEE, 
East Lindsey District Council,http://statistics.data.gov.uk/id/local-authority/32UC,Meridian Facility Manager,Other Miscellaneous Expenses,14/02/13,IJ00018827,603.92,DEE BEE, 
East Lindsey District Council,http://statistics.data.gov.uk/id/local-authority/32UC,Theatre Manager,Performers and Entertainers Fees,14/02/13,IJ00018990,7627.43,WILD ROSE LTD, 
East Lindsey District Council,http://statistics.data.gov.uk/id/local-authority/32UC,Theatre Manager,Performers and Entertainers Fees,14/02/13,IJ00018990,-3625,WILD ROSE LTD, 
East Lindsey District Council,http://statistics.data.gov.uk/id/local-authority/32UC,Capital WIP,Grants and Contributions to Outside Bodies- No Service Recei,14/02/13,IJ00018986,7684.94,ANDREW BLADES BUILDING SERVICES LTD, 
East Lindsey District Council,http://statistics.data.gov.uk/id/local-authority/32UC,Hsg Private Sector TL,Other Income,14/02/13,IJ00018986,-686.16,ANDREW BLADES BUILDING SERVICES LTD, 
East Lindsey District Council,http://statistics.data.gov.uk/id/local-authority/32UC,Technical Services Team Leader,Electricity,14/02/13,IJ00018957,1981.35,E.ON ENERGY, 
East Lindsey District Council,http://statistics.data.gov.uk/id/local-authority/32UC,Enforcement Team Leader,Electricity,14/02/13,IJ00018957,6.09,E.ON ENERGY, 
East Lindsey District Council,http://statistics.data.gov.uk/id/local-authority/32UC,Enforcement Team Leader,Electricity,14/02/13,IJ00018957,19.12,E.ON ENERGY, 
East Lindsey District Council,http://statistics.data.gov.uk/id/local-authority/32UC,Enforcement Team Leader,Electricity,14/02/13,IJ00018957,8.2,E.ON ENERGY, 
East Lindsey District Council,http://statistics.data.gov.uk/id/local-authority/32UC,Enforcement Team Leader,Electricity,14/02/13,IJ00018957,17.43,E.ON ENERGY, 
East Lindsey District Council,http://statistics.data.gov.uk/id/local-authority/32UC,Enforcement Team Leader,Electricity,14/02/13,IJ00018957,39.57,E.ON ENERGY, 
East Lindsey District Council,http://statistics.data.gov.uk/id/local-authority/32UC,Enforcement Team Leader,Electricity,14/02/13,IJ00018957,19.23,E.ON ENERGY, 
East Lindsey District Council,http://statistics.data.gov.uk/id/local-authority/32UC,Enforcement Team Leader,Electricity,14/02/13,IJ00018957,13.19,E.ON ENERGY, 
East Lindsey District Council,http://statistics.data.gov.uk/id/local-authority/32UC,Service Development Manager,Electricity,14/02/13,IJ00018957,6.4,E.ON ENERGY, 
East Lindsey District Council,http://statistics.data.gov.uk/id/local-authority/32UC,TL Partnerships & Grants,Grants and Contributions to Outside Bodies- No Service Recei,14/02/13,IJ00018809,1020,ALFORD SPORTS HALL, 
East Lindsey District Council,http://statistics.data.gov.uk/id/local-authority/32UC,Capital WIP,Works to Buildings (main Contractor),14/02/13,IJ00018575,4795,PELL PLANT HIRE LTD, 
East Lindsey District Council,http://statistics.data.gov.uk/id/local-authority/32UC,Development Control,Agency Staff,14/02/13,IJ00018878,8669.21,LGS LIMITED, 
East Lindsey District Council,http://statistics.data.gov.uk/id/local-authority/32UC,Area Working,Agency Staff,14/02/13,IJ00018916,705.58,THE WORKSHOP (WISBECH) LIMITED, 
East Lindsey District Council,http://statistics.data.gov.uk/id/local-authority/32UC,Area Working,Agency Staff,14/02/13,IJ00018916,705.57,THE WORKSHOP (WISBECH) LIMITED, 
East Lindsey District Council,http://statistics.data.gov.uk/id/local-authority/32UC,Customer Services Manager,Payments to Bodies in Respect of Income Collected,14/02/13,IJ00018858,1027.16,NATIONAL EXPRESS CREDIT CONTROL DEPT, 
East Lindsey District Council,http://statistics.data.gov.uk/id/local-authority/32UC,Customer Services Manager,Payments to Bodies in Respect of Income Collected,14/02/13,IJ00018858,1511.84,NATIONAL EXPRESS CREDIT CONTROL DEPT, 
East Lindsey District Council,http://statistics.data.gov.uk/id/local-authority/32UC,Customer Services Manager,Payments to Bodies in Respect of Income Collected,14/02/13,IJ00018858,435,NATIONAL EXPRESS CREDIT CONTROL DEPT, 
East Lindsey District Council,http://statistics.data.gov.uk/id/local-authority/32UC,Customer Services Manager,Payments to Bodies in Respect of Income Collected,14/02/13,IJ00018858,98.01,NATIONAL EXPRESS CREDIT CONTROL DEPT, 
East Lindsey District Council,http://statistics.data.gov.uk/id/local-authority/32UC,Housing Support TL,Rent and Lease Payments,14/02/13,IJ00018839,937.5,TOTEMIC LTD, 
East Lindsey District Council,http://statistics.data.gov.uk/id/local-authority/32UC,Capital WIP,Grants and Contributions to Outside Bodies- No Service Recei,14/02/13,IJ00018717,2130,BALL & LAWTON LTD, 
East Lindsey District Council,http://statistics.data.gov.uk/id/local-authority/32UC,TL Partnerships & Grants,Grants and Contributions to Outside Bodies- No Service Recei,14/02/13,IJ00018946,4000,MABLETHORPE MARATHON COMMITTEE, 
East Lindsey District Council,http://statistics.data.gov.uk/id/local-authority/32UC,TL Property,Professional & Contractors Fees,14/02/13,IJ00018971,1320,FOCUS CONSULTANTS 2010 LLP, 
East Lindsey District Council,http://statistics.data.gov.uk/id/local-authority/32UC,Democracy Manager,Grants and Contributions to Outside Bodies- No Service Recei,14/02/13,IJ00018869,600,CROFT PARISH COUNCIL, 
East Lindsey District Council,http://statistics.data.gov.uk/id/local-authority/32UC,Waste Services Manager,Furniture and Equipment,14/02/13,IJ00018831,1380.34,MCFARLAND ENGINEERING, 
East Lindsey District Council,http://statistics.data.gov.uk/id/local-authority/32UC,Policy & Project Manager,Water and Sewerage Charges,14/02/13,IJ00018949,313.43,ANGLIAN WATER, 
East Lindsey District Council,http://statistics.data.gov.uk/id/local-authority/32UC,Policy & Project Manager,Water and Sewerage Charges,14/02/13,IJ00018949,371.43,ANGLIAN WATER, 
East Lindsey District Council,http://statistics.data.gov.uk/id/local-authority/32UC,TL Partnerships & Grants,Grants and Contributions to Outside Bodies- No Service Recei,14/02/13,IJ00018808,1384,ALFORD CRAFT MARKET, 
East Lindsey District Council,http://statistics.data.gov.uk/id/local-authority/32UC,Policy & Project Manager,Grants and Contributions- Where a Service is Received,14/02/13,IJ00018724,5000,SKILLSREACH, 
East Lindsey District Council,http://statistics.data.gov.uk/id/local-authority/32UC,Policy & Project Manager,Cleaning Contract,14/02/13,IJ00018730,760.4,EASY CLEAN MARSHCHAPEL LTD, 
East Lindsey District Council,http://statistics.data.gov.uk/id/local-authority/32UC,Policy & Project Manager,Cleaning Contract,14/02/13,IJ00018734,777.9,EASY CLEAN MARSHCHAPEL LTD, 
East Lindsey District Council,http://statistics.data.gov.uk/id/local-authority/32UC,Commercial Team Leader,Other Private Contractors,14/02/13,IJ00018813,950,SKEGNESS & DISTRICT FUNERAL SERVICES, 
East Lindsey District Council,http://statistics.data.gov.uk/id/local-authority/32UC,Commercial Team Leader,Other Private Contractors,14/02/13,IJ00018814,990,SKEGNESS & DISTRICT FUNERAL SERVICES, 
East Lindsey District Council,http://statistics.data.gov.uk/id/local-authority/32UC,Organisational Dev Manager,Staff Training Expenses,14/02/13,IJ00019011,595,CMS TRAINING, 
East Lindsey District Council,http://statistics.data.gov.uk/id/local-authority/32UC,Corporate Accounting,Professional & Contractors Fees,14/02/13,IJ00019009,777,KINGS ARMOURED SECURITY SERVICES LTD, 
East Lindsey District Council,http://statistics.data.gov.uk/id/local-authority/32UC,Improvement & Development Mngr,Materials and Consumables,14/02/13,IJ00018833,1051.25,BRITISH HARDWOOD TREE NURSERY LTD, 
East Lindsey District Council,http://statistics.data.gov.uk/id/local-authority/32UC,Democracy Manager,Grants and Contributions to Outside Bodies- No Service Recei,14/02/13,IJ00018868,600,LITTLE STEEPING VILLAGE HALL MANAGEMENT COMMITTEE, 
East Lindsey District Council,http://statistics.data.gov.uk/id/local-authority/32UC,Business Development Manager,Other Miscellaneous Expenses,14/02/13,IJ00018885,5.65,ARTAVIA ADVERTISING, 
East Lindsey District Council,http://statistics.data.gov.uk/id/local-authority/32UC,Business Development Manager,Other Miscellaneous Expenses,14/02/13,IJ00018885,5652,ARTAVIA ADVERTISING, 
East Lindsey District Council,http://statistics.data.gov.uk/id/local-authority/32UC,Business Development Manager,Grants and Contributions to Outside Bodies- No Service Recei,14/02/13,IJ00018890,528.5,SPECTEL PRODUCTIONS LIMITED, 
East Lindsey District Council,http://statistics.data.gov.uk/id/local-authority/32UC,Business Development Manager,Other Miscellaneous Expenses,14/02/13,IJ00018888,2000,CARRIER DIRECT LIMITED, 
East Lindsey District Council,http://statistics.data.gov.uk/id/local-authority/32UC,Business Development Manager,Advertising - Events,14/02/13,IJ00018889,3715.47,CARRIER DIRECT LIMITED, 
East Lindsey District Council,http://statistics.data.gov.uk/id/local-authority/32UC,Democracy Manager,Grants and Contributions to Outside Bodies- No Service Recei,14/02/13,IJ00018873,500,BURGH BAPTIST CHURCH, 
East Lindsey District Council,http://statistics.data.gov.uk/id/local-authority/32UC,Business Development Manager,Grants and Contributions to Outside Bodies- No Service Recei,14/02/13,IJ00018886,11250,PAUL RAYBOULD MARKETING, 
East Lindsey District Council,http://statistics.data.gov.uk/id/local-authority/32UC,Public Conveniences,Buildings Maintenance - Programmed,14/02/13,IJ00018970,5441.66,Langwith Builders Ltd, 
East Lindsey District Council,http://statistics.data.gov.uk/id/local-authority/32UC,Capital WIP,Works to Buildings (main Contractor),14/02/13,IJ00018947,13925.66,Langwith Builders Ltd, 
East Lindsey District Council,http://statistics.data.gov.uk/id/local-authority/32UC,TL Partnerships & Grants,Grants and Contributions to Outside Bodies- No Service Recei,14/02/13,IJ00018807,2431.35,AGE CONCERN LINDSEY, 
East Lindsey District Council,http://statistics.data.gov.uk/id/local-authority/32UC,Waste Services Manager,Transport Insurance,14/02/13,IJ00019015,9500,MAY GURNEY FLEET & PASSENGER SERVICES LTD, 
East Lindsey District Council,http://statistics.data.gov.uk/id/local-authority/32UC,Policy & Project Manager,Grants and Contributions- Where a Service is Received,14/02/13,IJ00018865,720,MILL DESIGN AND ADVERTISING, 
East Lindsey District Council,http://statistics.data.gov.uk/id/local-authority/32UC,TL Partnerships & Grants,Grants and Contributions to Outside Bodies- No Service Recei,14/02/13,IJ00018923,800,SOUTH COCKERINGTON PAROCHIAL CHURCH COUNCIL, 
East Lindsey District Council,http://statistics.data.gov.uk/id/local-authority/32UC,Policy & Project Manager,Grants and Contributions to Outside Bodies- No Service Recei,14/02/13,IJ00018902,2550,SKEGNESS TOWN CENTRE PARTNERSHIP, 
East Lindsey District Council,http://statistics.data.gov.uk/id/local-authority/32UC,Policy & Project Manager,Grants and Contributions to Outside Bodies- No Service Recei,14/02/13,IJ00018902,175,SKEGNESS TOWN CENTRE PARTNERSHIP, 
East Lindsey District Council,http://statistics.data.gov.uk/id/local-authority/32UC,Waste Services Manager,Furniture and Equipment,14/02/13,IJ00018938,4500,BRENNTAG UK LIMITED, 
East Lindsey District Council,http://statistics.data.gov.uk/id/local-authority/32UC,TL Partnerships & Grants,Grants and Contributions to Outside Bodies- No Service Recei,14/02/13,IJ00018810,2000,Louth Education Community Interest Company, 
East Lindsey District Council,http://statistics.data.gov.uk/id/local-authority/32UC,Technical Services Team Leader,Other Miscellaneous Expenses,14/02/13,IJ00019016,591,British Red Cross Society, 
East Lindsey District Council,http://statistics.data.gov.uk/id/local-authority/32UC,TL IT - Network & Comms,Computer Software Purchase,14/02/13,IJ00018909,4334,Involve Visual Collaboration Ltd, 
East Lindsey District Council,http://statistics.data.gov.uk/id/local-authority/32UC,Hsg Advice & Homelessness TL,Other Miscellaneous Expenses,14/02/13,IJ00018801,637.5,Redacted personal information,Redact
East Lindsey District Council,http://statistics.data.gov.uk/id/local-authority/32UC,Democracy Manager,Grants and Contributions to Outside Bodies- No Service Recei,14/02/13,IJ00018866,500,East Keal Parochial Church Council, 
East Lindsey District Council,http://statistics.data.gov.uk/id/local-authority/32UC,Waste Services Manager,Maintenance,14/02/13,IJ00018879,1472.91,SHIRE LEASING PLC, 
East Lindsey District Council,http://statistics.data.gov.uk/id/local-authority/32UC,Business Development Manager,Other Miscellaneous Expenses,14/02/13,IJ00018995,787.5,Global Tourism Solutions UK Ltd, 
East Lindsey District Council,http://statistics.data.gov.uk/id/local-authority/32UC,BALANCE  SHEET,Other Miscellaneous Expenses,14/02/13,IJ00018891,3836,Martins Motor Company, 
East Lindsey District Council,http://statistics.data.gov.uk/id/local-authority/32UC,Building Control,Agency Staff,21/02/13,IJ00019105,11661.28,BOSTON BOROUGH COUNCIL, 
East Lindsey District Council,http://statistics.data.gov.uk/id/local-authority/32UC,Corporate Accounting,Telephones,21/02/13,IJ00019118,176.55,VODAFONE CORPORATE LIMITED, 
East Lindsey District Council,http://statistics.data.gov.uk/id/local-authority/32UC,Communications Manager,Telephones,21/02/13,IJ00019118,29.06,VODAFONE CORPORATE LIMITED, 
East Lindsey District Council,http://statistics.data.gov.uk/id/local-authority/32UC,TL Partnerships & Grants,Telephones,21/02/13,IJ00019118,7.4,VODAFONE CORPORATE LIMITED, 
East Lindsey District Council,http://statistics.data.gov.uk/id/local-authority/32UC,Housing Support TL,Telephones,21/02/13,IJ00019118,209.26,VODAFONE CORPORATE LIMITED, 
East Lindsey District Council,http://statistics.data.gov.uk/id/local-authority/32UC,Sports Development,Telephones,21/02/13,IJ00019118,55.84,VODAFONE CORPORATE LIMITED, 
East Lindsey District Council,http://statistics.data.gov.uk/id/local-authority/32UC,Service Development Manager,Telephones,21/02/13,IJ00019118,200.22,VODAFONE CORPORATE LIMITED, 
East Lindsey District Council,http://statistics.data.gov.uk/id/local-authority/32UC,Building Control Partnership,Telephones,21/02/13,IJ00019118,267.51,VODAFONE CORPORATE LIMITED, 
East Lindsey District Council,http://statistics.data.gov.uk/id/local-authority/32UC,Building Control,Telephones,21/02/13,IJ00019118,3,VODAFONE CORPORATE LIMITED, 
East Lindsey District Council,http://statistics.data.gov.uk/id/local-authority/32UC,Business Development Manager,Telephones,21/02/13,IJ00019118,2,VODAFONE CORPORATE LIMITED, 
East Lindsey District Council,http://statistics.data.gov.uk/id/local-authority/32UC,Business Development Manager,Telephones,21/02/13,IJ00019118,11.94,VODAFONE CORPORATE LIMITED, 
East Lindsey District Council,http://statistics.data.gov.uk/id/local-authority/32UC,Business Innovation Manager,Telephones,21/02/13,IJ00019118,1.5,VODAFONE CORPORATE LIMITED, 
East Lindsey District Council,http://statistics.data.gov.uk/id/local-authority/32UC,Cultural & Related Services,Telephones,21/02/13,IJ00019118,9.79,VODAFONE CORPORATE LIMITED, 
East Lindsey District Council,http://statistics.data.gov.uk/id/local-authority/32UC,Cultural & Related Services,Telephones,21/02/13,IJ00019118,11.45,VODAFONE CORPORATE LIMITED, 
East Lindsey District Council,http://statistics.data.gov.uk/id/local-authority/32UC,Commercial Team Leader,Telephones,21/02/13,IJ00019118,84.34,VODAFONE CORPORATE LIMITED, 
East Lindsey District Council,http://statistics.data.gov.uk/id/local-authority/32UC,Chief Executive,Telephones,21/02/13,IJ00019118,12.15,VODAFONE CORPORATE LIMITED, 
East Lindsey District Council,http://statistics.data.gov.uk/id/local-authority/32UC,Chief Executive,Telephones,21/02/13,IJ00019118,32.78,VODAFONE CORPORATE LIMITED, 
East Lindsey District Council,http://statistics.data.gov.uk/id/local-authority/32UC,Chief Executive,Telephones,21/02/13,IJ00019118,15.92,VODAFONE CORPORATE LIMITED, 
East Lindsey District Council,http://statistics.data.gov.uk/id/local-authority/32UC,Democracy Manager,Telephones,21/02/13,IJ00019118,37.63,VODAFONE CORPORATE LIMITED, 
East Lindsey District Council,http://statistics.data.gov.uk/id/local-authority/32UC,Development Control,Telephones,21/02/13,IJ00019118,10.76,VODAFONE CORPORATE LIMITED, 
East Lindsey District Council,http://statistics.data.gov.uk/id/local-authority/32UC,Enforcement Team Leader,Telephones,21/02/13,IJ00019118,15.61,VODAFONE CORPORATE LIMITED, 
East Lindsey District Council,http://statistics.data.gov.uk/id/local-authority/32UC,Enforcement Team Leader,Telephones,21/02/13,IJ00019118,23.68,VODAFONE CORPORATE LIMITED, 
East Lindsey District Council,http://statistics.data.gov.uk/id/local-authority/32UC,Enforcement Team Leader,Telephones,21/02/13,IJ00019118,26.45,VODAFONE CORPORATE LIMITED, 
East Lindsey District Council,http://statistics.data.gov.uk/id/local-authority/32UC,Enforcement Team Leader,Telephones,21/02/13,IJ00019118,63.5,VODAFONE CORPORATE LIMITED, 
East Lindsey District Council,http://statistics.data.gov.uk/id/local-authority/32UC,Enforcement Team Leader,Telephones,21/02/13,IJ00019118,391.49,VODAFONE CORPORATE LIMITED, 
East Lindsey District Council,http://statistics.data.gov.uk/id/local-authority/32UC,Environment Team Leader,Telephones,21/02/13,IJ00019118,99.9,VODAFONE CORPORATE LIMITED, 
East Lindsey District Council,http://statistics.data.gov.uk/id/local-authority/32UC,Service Development Managers,Telephones,21/02/13,IJ00019118,9.35,VODAFONE CORPORATE LIMITED, 
East Lindsey District Council,http://statistics.data.gov.uk/id/local-authority/32UC,Theatre Manager,Telephones,21/02/13,IJ00019118,28.5,VODAFONE CORPORATE LIMITED, 
East Lindsey District Council,http://statistics.data.gov.uk/id/local-authority/32UC,Health Team Leader,Telephones,21/02/13,IJ00019118,16.34,VODAFONE CORPORATE LIMITED, 
East Lindsey District Council,http://statistics.data.gov.uk/id/local-authority/32UC,Health Team Leader,Telephones,21/02/13,IJ00019118,5.62,VODAFONE CORPORATE LIMITED, 
East Lindsey District Council,http://statistics.data.gov.uk/id/local-authority/32UC,Health Team Leader,Telephones,21/02/13,IJ00019118,39.02,VODAFONE CORPORATE LIMITED, 
East Lindsey District Council,http://statistics.data.gov.uk/id/local-authority/32UC,Health Team Leader,Telephones,21/02/13,IJ00019118,2.76,VODAFONE CORPORATE LIMITED, 
East Lindsey District Council,http://statistics.data.gov.uk/id/local-authority/32UC,Hsg Advice & Homelessness TL,Telephones,21/02/13,IJ00019118,3.21,VODAFONE CORPORATE LIMITED, 
East Lindsey District Council,http://statistics.data.gov.uk/id/local-authority/32UC,Hsg Advice & Homelessness TL,Telephones,21/02/13,IJ00019118,30.63,VODAFONE CORPORATE LIMITED, 
East Lindsey District Council,http://statistics.data.gov.uk/id/local-authority/32UC,Hsg Private Sector TL,Telephones,21/02/13,IJ00019118,9.88,VODAFONE CORPORATE LIMITED, 
East Lindsey District Council,http://statistics.data.gov.uk/id/local-authority/32UC,Hsg Private Sector TL,Telephones,21/02/13,IJ00019118,4.56,VODAFONE CORPORATE LIMITED, 
East Lindsey District Council,http://statistics.data.gov.uk/id/local-authority/32UC,Hsg Private Sector TL,Telephones,21/02/13,IJ00019118,37.91,VODAFONE CORPORATE LIMITED, 
East Lindsey District Council,http://statistics.data.gov.uk/id/local-authority/32UC,Hsg Private Sector TL,Telephones,21/02/13,IJ00019118,1.5,VODAFONE CORPORATE LIMITED, 
East Lindsey District Council,http://statistics.data.gov.uk/id/local-authority/32UC,Hsg Private Sector TL,Telephones,21/02/13,IJ00019118,11.14,VODAFONE CORPORATE LIMITED, 
East Lindsey District Council,http://statistics.data.gov.uk/id/local-authority/32UC,Housing Support TL,Telephones,21/02/13,IJ00019118,291.22,VODAFONE CORPORATE LIMITED, 
East Lindsey District Council,http://statistics.data.gov.uk/id/local-authority/32UC,Housing Support TL,Telephones,21/02/13,IJ00019118,1.5,VODAFONE CORPORATE LIMITED, 
East Lindsey District Council,http://statistics.data.gov.uk/id/local-authority/32UC,Housing Support TL,Telephones,21/02/13,IJ00019118,9,VODAFONE CORPORATE LIMITED, 
East Lindsey District Council,http://statistics.data.gov.uk/id/local-authority/32UC,Meridian Facility Manager,Telephones,21/02/13,IJ00019118,1.73,VODAFONE CORPORATE LIMITED, 
East Lindsey District Council,http://statistics.data.gov.uk/id/local-authority/32UC,Meridian Facility Manager,Telephones,21/02/13,IJ00019118,3.19,VODAFONE CORPORATE LIMITED, 
East Lindsey District Council,http://statistics.data.gov.uk/id/local-authority/32UC,Planning & Housing Policy Manager,Telephones,21/02/13,IJ00019118,9.4,VODAFONE CORPORATE LIMITED, 
East Lindsey District Council,http://statistics.data.gov.uk/id/local-authority/32UC,Planning & Housing Policy Manager,Telephones,21/02/13,IJ00019118,10.32,VODAFONE CORPORATE LIMITED, 
East Lindsey District Council,http://statistics.data.gov.uk/id/local-authority/32UC,Policy & Project Manager,Telephones,21/02/13,IJ00019118,21.31,VODAFONE CORPORATE LIMITED, 
East Lindsey District Council,http://statistics.data.gov.uk/id/local-authority/32UC,Policy & Project Manager,Telephones,21/02/13,IJ00019118,51.83,VODAFONE CORPORATE LIMITED, 
East Lindsey District Council,http://statistics.data.gov.uk/id/local-authority/32UC,TL Property,Telephones,21/02/13,IJ00019118,18.38,VODAFONE CORPORATE LIMITED, 
East Lindsey District Council,http://statistics.data.gov.uk/id/local-authority/32UC,Service Development Managers,Telephones,21/02/13,IJ00019118,11.15,VODAFONE CORPORATE LIMITED, 
East Lindsey District Council,http://statistics.data.gov.uk/id/local-authority/32UC,Service Development Managers,Telephones,21/02/13,IJ00019118,10.43,VODAFONE CORPORATE LIMITED, 
East Lindsey District Council,http://statistics.data.gov.uk/id/local-authority/32UC,Strategic Director (SD),Telephones,21/02/13,IJ00019118,9.08,VODAFONE CORPORATE LIMITED, 
East Lindsey District Council,http://statistics.data.gov.uk/id/local-authority/32UC,Sports Centre Manager,Telephones,21/02/13,IJ00019118,29.42,VODAFONE CORPORATE LIMITED, 
East Lindsey District Council,http://statistics.data.gov.uk/id/local-authority/32UC,Sports Development,Telephones,21/02/13,IJ00019118,21.11,VODAFONE CORPORATE LIMITED, 
East Lindsey District Council,http://statistics.data.gov.uk/id/local-authority/32UC,Sports Development,Telephones,21/02/13,IJ00019118,1.5,VODAFONE CORPORATE LIMITED, 
East Lindsey District Council,http://statistics.data.gov.uk/id/local-authority/32UC,BM Sports Facilities,Telephones,21/02/13,IJ00019118,6.88,VODAFONE CORPORATE LIMITED, 
East Lindsey District Council,http://statistics.data.gov.uk/id/local-authority/32UC,Waste Services Manager,Telephones,21/02/13,IJ00019118,47.38,VODAFONE CORPORATE LIMITED, 
East Lindsey District Council,http://statistics.data.gov.uk/id/local-authority/32UC,Technical Services Team Leader,Telephones,21/02/13,IJ00019118,4.7,VODAFONE CORPORATE LIMITED, 
East Lindsey District Council,http://statistics.data.gov.uk/id/local-authority/32UC,Technical Services Team Leader,Telephones,21/02/13,IJ00019118,98.18,VODAFONE CORPORATE LIMITED, 
East Lindsey District Council,http://statistics.data.gov.uk/id/local-authority/32UC,Technical Services Team Leader,Telephones,21/02/13,IJ00019118,6.03,VODAFONE CORPORATE LIMITED, 
East Lindsey District Council,http://statistics.data.gov.uk/id/local-authority/32UC,Theatre Manager,Telephones,21/02/13,IJ00019118,1.5,VODAFONE CORPORATE LIMITED, 
East Lindsey District Council,http://statistics.data.gov.uk/id/local-authority/32UC,Theatre Manager,Telephones,21/02/13,IJ00019118,12,VODAFONE CORPORATE LIMITED, 
East Lindsey District Council,http://statistics.data.gov.uk/id/local-authority/32UC,Waste Services Manager,Telephones,21/02/13,IJ00019118,88.11,VODAFONE CORPORATE LIMITED, 
East Lindsey District Council,http://statistics.data.gov.uk/id/local-authority/32UC,Area Working,Telephones,21/02/13,IJ00019118,24.89,VODAFONE CORPORATE LIMITED, 
East Lindsey District Council,http://statistics.data.gov.uk/id/local-authority/32UC,Improvement & Development Mngr,Telephones,21/02/13,IJ00019118,76.15,VODAFONE CORPORATE LIMITED, 
East Lindsey District Council,http://statistics.data.gov.uk/id/local-authority/32UC,Sports Development,Telephones,21/02/13,IJ00019118,4.5,VODAFONE CORPORATE LIMITED, 
East Lindsey District Council,http://statistics.data.gov.uk/id/local-authority/32UC,Cultural & Related Services,Telephones,21/02/13,IJ00019118,25.54,VODAFONE CORPORATE LIMITED, 
East Lindsey District Council,http://statistics.data.gov.uk/id/local-authority/32UC,Area Working,Telephones,21/02/13,IJ00019118,4.11,VODAFONE CORPORATE LIMITED, 
East Lindsey District Council,http://statistics.data.gov.uk/id/local-authority/32UC,Capital WIP,Grants and Contributions to Outside Bodies- No Service Recei,21/02/13,IJ00019049,1198.17,M & M GRANTHAM, 
East Lindsey District Council,http://statistics.data.gov.uk/id/local-authority/32UC,Hsg Private Sector TL,Other Income,21/02/13,IJ00019049,-381.73,M & M GRANTHAM, 
East Lindsey District Council,http://statistics.data.gov.uk/id/local-authority/32UC,Democracy Manager,Postages,21/02/13,IJ00019023,1108.01,ROYAL MAIL, 
East Lindsey District Council,http://statistics.data.gov.uk/id/local-authority/32UC,Theatre Manager,Postages,21/02/13,IJ00019130,444.82,ROYAL MAIL, 
East Lindsey District Council,http://statistics.data.gov.uk/id/local-authority/32UC,Theatre Manager,Postages,21/02/13,IJ00019130,184.22,ROYAL MAIL, 
East Lindsey District Council,http://statistics.data.gov.uk/id/local-authority/32UC,Enforcement Team Leader,Stationery,21/02/13,IJ00019012,3016,PAPERWORK UK LTD, 
East Lindsey District Council,http://statistics.data.gov.uk/id/local-authority/32UC,Enforcement Team Leader,Professional & Contractors Fees,21/02/13,IJ00019160,3118,LINCOLNSHIRE COUNTY COUNCIL, 
East Lindsey District Council,http://statistics.data.gov.uk/id/local-authority/32UC,Development Control,Professional & Contractors Fees,21/02/13,IJ00019060,11724,LINCOLNSHIRE COUNTY COUNCIL, 
East Lindsey District Council,http://statistics.data.gov.uk/id/local-authority/32UC,Democracy Manager,Grants and Contributions to Outside Bodies- No Service Recei,21/02/13,IJ00019074,1500,LOUTH TOWN COUNCIL, 
East Lindsey District Council,http://statistics.data.gov.uk/id/local-authority/32UC,Enforcement Team Leader,Materials and Consumables,21/02/13,IJ00019163,8428,DEVLIN DECORATORS LTD, 
East Lindsey District Council,http://statistics.data.gov.uk/id/local-authority/32UC,Meridian Facility Manager,Purchase Of Goods For Resale,21/02/13,IJ00019154,40.74,DEE BEE, 
East Lindsey District Council,http://statistics.data.gov.uk/id/local-authority/32UC,Meridian Facility Manager,Other Miscellaneous Expenses,21/02/13,IJ00019154,1045.12,DEE BEE, 
East Lindsey District Council,http://statistics.data.gov.uk/id/local-authority/32UC,Corporate Accounting,Non -Ringfenced Government Grants - RSG,21/02/13,IJ00019145,-47761,DEPARTMENT FOR COMMUNITIES AND LOCAL, 
East Lindsey District Council,http://statistics.data.gov.uk/id/local-authority/32UC,Collection Fund,Payment to NNDR Pool,21/02/13,IJ00019145,313573,DEPARTMENT FOR COMMUNITIES AND LOCAL, 
East Lindsey District Council,http://statistics.data.gov.uk/id/local-authority/32UC,Corporate Accounting,Non Domestic Rates,21/02/13,IJ00019145,-123252,DEPARTMENT FOR COMMUNITIES AND LOCAL, 
East Lindsey District Council,http://statistics.data.gov.uk/id/local-authority/32UC,TL Partnerships & Grants,Grants and Contributions to Outside Bodies- No Service Recei,21/02/13,IJ00019069,3740,THE ROYAL BRITISH LEGION, 
East Lindsey District Council,http://statistics.data.gov.uk/id/local-authority/32UC,Waste Services Manager,Agency Staff,21/02/13,IJ00019116,1648.2,CLOSE INVOICE FINANCE LTD, 
East Lindsey District Council,http://statistics.data.gov.uk/id/local-authority/32UC,Capital WIP,Works to Buildings (main Contractor),21/02/13,IJ00019052,1075,PELL PLANT HIRE LTD, 
East Lindsey District Council,http://statistics.data.gov.uk/id/local-authority/32UC,Capital WIP,Works to Buildings (main Contractor),21/02/13,IJ00019053,1150,PELL PLANT HIRE LTD, 
East Lindsey District Council,http://statistics.data.gov.uk/id/local-authority/32UC,Democracy Manager,Grants and Contributions to Outside Bodies- No Service Recei,21/02/13,IJ00019071,750,HOMESTART EAST LINDSEY, 
East Lindsey District Council,http://statistics.data.gov.uk/id/local-authority/32UC,Capital WIP,Grants and Contributions to Outside Bodies- No Service Recei,21/02/13,IJ00019044,1500,DOLPHIN MOBILITY EAST MIDLANDS, 
East Lindsey District Council,http://statistics.data.gov.uk/id/local-authority/32UC,Waste Services Manager,Agency Staff,21/02/13,IJ00019038,1498,LINCS MOTORHOMES LTD, 
East Lindsey District Council,http://statistics.data.gov.uk/id/local-authority/32UC,TL Partnerships & Grants,Grants and Contributions to Outside Bodies- No Service Recei,21/02/13,IJ00019099,3250,HUBBARDS HILLS TRUST LTD, 
East Lindsey District Council,http://statistics.data.gov.uk/id/local-authority/32UC,Theatre Manager,Professional & Contractors Fees,21/02/13,IJ00019019,2505,KEEP BRITAIN TIDY, 
East Lindsey District Council,http://statistics.data.gov.uk/id/local-authority/32UC,Democracy Manager,Grants and Contributions to Outside Bodies- No Service Recei,21/02/13,IJ00019072,500,MABLETHORPE AREA PARTNERSHIP, 
East Lindsey District Council,http://statistics.data.gov.uk/id/local-authority/32UC,TL IT - Infrastructure,Buildings Maintenance - Programmed,21/02/13,IJ00019098,640,MHS ALARM SERVICES LTD, 
East Lindsey District Council,http://statistics.data.gov.uk/id/local-authority/32UC,Meridian Facility Manager,Other Miscellaneous Expenses,21/02/13,IJ00019048,670,REPLAY MAINTENANCE LTD, 
East Lindsey District Council,http://statistics.data.gov.uk/id/local-authority/32UC,Meridian Facility Manager,Other Miscellaneous Expenses,21/02/13,IJ00019048,1340,REPLAY MAINTENANCE LTD, 
East Lindsey District Council,http://statistics.data.gov.uk/id/local-authority/32UC,Sports Centre Manager,Furniture and Equipment,21/02/13,IJ00019048,670,REPLAY MAINTENANCE LTD, 
East Lindsey District Council,http://statistics.data.gov.uk/id/local-authority/32UC,Sports Centre Manager,Furniture and Equipment,21/02/13,IJ00019048,670,REPLAY MAINTENANCE LTD, 
East Lindsey District Council,http://statistics.data.gov.uk/id/local-authority/32UC,Business Development Manager,Other Miscellaneous Expenses,21/02/13,IJ00019114,1550,BRITISH DESTINATIONS, 
East Lindsey District Council,http://statistics.data.gov.uk/id/local-authority/32UC,Development Control,Professional & Contractors Fees,21/02/13,IJ00019021,4900,ENPLAN UK LIMITED, 
East Lindsey District Council,http://statistics.data.gov.uk/id/local-authority/32UC,Policy & Project Manager,Cleaning Contract,21/02/13,IJ00019081,593,EASY CLEAN MARSHCHAPEL LTD, 
East Lindsey District Council,http://statistics.data.gov.uk/id/local-authority/32UC,Area Working,Maintenance,21/02/13,IJ00019113,554.03,BURDENS GROUP LTD, 
East Lindsey District Council,http://statistics.data.gov.uk/id/local-authority/32UC,Policy & Project Manager,Other Miscellaneous Expenses,21/02/13,IJ00019082,1003,EAST LINCS RURAL TRAINING, 
East Lindsey District Council,http://statistics.data.gov.uk/id/local-authority/32UC,Environment Team Leader,Other Private Contractors,21/02/13,IJ00019055,2675,SITE INVESTIGATION SERVICES, 
East Lindsey District Council,http://statistics.data.gov.uk/id/local-authority/32UC,Improvement & Development Mngr,Clothing Uniforms And Laundry,21/02/13,IJ00019152,1052.6,SAFETY MANAGEMENT INT GROUP, 
East Lindsey District Council,http://statistics.data.gov.uk/id/local-authority/32UC,Business Development Manager,Other Miscellaneous Expenses,21/02/13,IJ00019157,946.15,CBS OUTDOOR LIMITED, 
East Lindsey District Council,http://statistics.data.gov.uk/id/local-authority/32UC,Democracy Manager,External Printing and Design Costs,21/02/13,IJ00019025,922.38,FCS LASER MAIL, 
East Lindsey District Council,http://statistics.data.gov.uk/id/local-authority/32UC,Business Development Manager,Other Miscellaneous Expenses,21/02/13,IJ00019167,750,FRED MARKETING LTD, 
East Lindsey District Council,http://statistics.data.gov.uk/id/local-authority/32UC,Business Development Manager,Other Miscellaneous Expenses,21/02/13,IJ00019167,500,FRED MARKETING LTD, 
East Lindsey District Council,http://statistics.data.gov.uk/id/local-authority/32UC,Organisational Dev Manager,Staff Training Expenses,21/02/13,IJ00019103,1752,PARKING ASSOCIATES LTD, 
East Lindsey District Council,http://statistics.data.gov.uk/id/local-authority/32UC,Democracy Manager,Grants and Contributions to Outside Bodies- No Service Recei,21/02/13,IJ00019073,930,Girls Friendly Society In England and Wales, 
East Lindsey District Council,http://statistics.data.gov.uk/id/local-authority/32UC,Democracy Manager,Grants and Contributions to Outside Bodies- No Service Recei,21/02/13,IJ00019096,778,Seathorne Community Library Fund, 
East Lindsey District Council,http://statistics.data.gov.uk/id/local-authority/32UC,Theatre Manager,Performers and Entertainers Fees,21/02/13,IJ00019132,1540.07,What Free Time, 
East Lindsey District Council,http://statistics.data.gov.uk/id/local-authority/32UC,Enforcement Team Leader,Payments to Bodies in Respect of Income Collected,27/02/13,IJ00019307,13196.73,INNES ENGLAND COMMERCIAL PROPERTY, 
East Lindsey District Council,http://statistics.data.gov.uk/id/local-authority/32UC,Corporate Accounting,Compass Point Business Services,27/02/13,IJ00019308,426944.58,COMPASS POINT BUSINESS SERVICES, 
East Lindsey District Council,http://statistics.data.gov.uk/id/local-authority/32UC,Policy & Project Manager,Professional & Contractors Fees,28/02/13,IJ00019195,42.44,BIFFA WASTE SERVICES LTD, 
East Lindsey District Council,http://statistics.data.gov.uk/id/local-authority/32UC,Horncastle Pool Manager,Professional & Contractors Fees,28/02/13,IJ00019195,84.88,BIFFA WASTE SERVICES LTD, 
East Lindsey District Council,http://statistics.data.gov.uk/id/local-authority/32UC,TL Property,Professional & Contractors Fees,28/02/13,IJ00019195,84.88,BIFFA WASTE SERVICES LTD, 
East Lindsey District Council,http://statistics.data.gov.uk/id/local-authority/32UC,TL Property,Professional & Contractors Fees,28/02/13,IJ00019195,42.44,BIFFA WASTE SERVICES LTD, 
East Lindsey District Council,http://statistics.data.gov.uk/id/local-authority/32UC,TL Property,Professional & Contractors Fees,28/02/13,IJ00019195,204.2,BIFFA WASTE SERVICES LTD, 
East Lindsey District Council,http://statistics.data.gov.uk/id/local-authority/32UC,TL Property,Professional & Contractors Fees,28/02/13,IJ00019195,42.44,BIFFA WASTE SERVICES LTD, 
East Lindsey District Council,http://statistics.data.gov.uk/id/local-authority/32UC,Policy & Project Manager,Professional & Contractors Fees,28/02/13,IJ00019195,42.44,BIFFA WASTE SERVICES LTD, 
East Lindsey District Council,http://statistics.data.gov.uk/id/local-authority/32UC,Policy & Project Manager,Professional & Contractors Fees,28/02/13,IJ00019195,42.44,BIFFA WASTE SERVICES LTD, 
East Lindsey District Council,http://statistics.data.gov.uk/id/local-authority/32UC,Embassy Pool Manager,Professional & Contractors Fees,28/02/13,IJ00019195,212.2,BIFFA WASTE SERVICES LTD, 
East Lindsey District Council,http://statistics.data.gov.uk/id/local-authority/32UC,Theatre Manager,Professional & Contractors Fees,28/02/13,IJ00019195,84.88,BIFFA WASTE SERVICES LTD, 
East Lindsey District Council,http://statistics.data.gov.uk/id/local-authority/32UC,Theatre Manager,Professional & Contractors Fees,28/02/13,IJ00019195,29,BIFFA WASTE SERVICES LTD, 
East Lindsey District Council,http://statistics.data.gov.uk/id/local-authority/32UC,Sports Centre Manager,Professional & Contractors Fees,28/02/13,IJ00019195,42.44,BIFFA WASTE SERVICES LTD, 
East Lindsey District Council,http://statistics.data.gov.uk/id/local-authority/32UC,Meridian Facility Manager,Professional & Contractors Fees,28/02/13,IJ00019195,42.44,BIFFA WASTE SERVICES LTD, 
East Lindsey District Council,http://statistics.data.gov.uk/id/local-authority/32UC,Technical Services Team Leader,Buildings Maintenance - Responsive,28/02/13,IJ00019299,4194.2,HARLITE INSTALLATIONS LTD, 
East Lindsey District Council,http://statistics.data.gov.uk/id/local-authority/32UC,Enforcement Team Leader,Buildings Maintenance - Responsive,28/02/13,IJ00019299,18.02,HARLITE INSTALLATIONS LTD, 
East Lindsey District Council,http://statistics.data.gov.uk/id/local-authority/32UC,Service Development Manager,Buildings Maintenance - Responsive,28/02/13,IJ00019299,37.08,HARLITE INSTALLATIONS LTD, 
East Lindsey District Council,http://statistics.data.gov.uk/id/local-authority/32UC,Service Development Manager,Buildings Maintenance - Responsive,28/02/13,IJ00019299,48.04,HARLITE INSTALLATIONS LTD, 
East Lindsey District Council,http://statistics.data.gov.uk/id/local-authority/32UC,Horncastle Pool Manager,Cleaning Contract,28/02/13,IJ00019214,634.94,STOWLIN LTD, 
East Lindsey District Council,http://statistics.data.gov.uk/id/local-authority/32UC,Democracy Manager,Grants and Contributions to Outside Bodies- No Service Recei,28/02/13,IJ00019201,800,WOODHALL SPA PARISH COUNCIL, 
East Lindsey District Council,http://statistics.data.gov.uk/id/local-authority/32UC,Meridian Facility Manager,Buildings Maintenance - Programmed,28/02/13,IJ00019282,546.45,ABACUS LIGHTING LIMITED, 
East Lindsey District Council,http://statistics.data.gov.uk/id/local-authority/32UC,Capital WIP,Grants and Contributions to Outside Bodies- No Service Recei,28/02/13,IJ00019241,8345.15,COTTS BUILDERS AND CONTRACTORS, 
East Lindsey District Council,http://statistics.data.gov.uk/id/local-authority/32UC,Hsg Private Sector TL,Other Income,28/02/13,IJ00019241,-745.1,COTTS BUILDERS AND CONTRACTORS, 
East Lindsey District Council,http://statistics.data.gov.uk/id/local-authority/32UC,Capital WIP,Grants and Contributions to Outside Bodies- No Service Recei,28/02/13,IJ00019233,814.62,M & M GRANTHAM, 
East Lindsey District Council,http://statistics.data.gov.uk/id/local-authority/32UC,Hsg Private Sector TL,Other Income,28/02/13,IJ00019233,-72.73,M & M GRANTHAM, 
East Lindsey District Council,http://statistics.data.gov.uk/id/local-authority/32UC,Capital WIP,Grants and Contributions to Outside Bodies- No Service Recei,28/02/13,IJ00019238,5396.15,M & M GRANTHAM, 
East Lindsey District Council,http://statistics.data.gov.uk/id/local-authority/32UC,Hsg Private Sector TL,Other Income,28/02/13,IJ00019238,-481.8,M & M GRANTHAM, 
East Lindsey District Council,http://statistics.data.gov.uk/id/local-authority/32UC,Democracy Manager,Grants and Contributions to Outside Bodies- No Service Recei,28/02/13,IJ00019267,1150,FRISKNEY VILLAGE HALL, 
East Lindsey District Council,http://statistics.data.gov.uk/id/local-authority/32UC,Sports Centre Manager,Furniture and Equipment,28/02/13,IJ00019357,720,SAUNATEC, 
East Lindsey District Council,http://statistics.data.gov.uk/id/local-authority/32UC,IT Manager,Computer Hardware Purchase,28/02/13,IJ00015809,603.84,DELL COMPUTER CORPORATION LTD, 
East Lindsey District Council,http://statistics.data.gov.uk/id/local-authority/32UC,IT Manager,Computer Hardware Purchase,28/02/13,IJ00018551,7155,DELL COMPUTER CORPORATION LTD, 
East Lindsey District Council,http://statistics.data.gov.uk/id/local-authority/32UC,IT Manager,Computer Hardware Purchase,28/02/13,IJ00019219,19086.2,DELL COMPUTER CORPORATION LTD, 
East Lindsey District Council,http://statistics.data.gov.uk/id/local-authority/32UC,IT Manager,Computer Hardware Purchase,28/02/13,IJ00019220,10750.2,DELL COMPUTER CORPORATION LTD, 
East Lindsey District Council,http://statistics.data.gov.uk/id/local-authority/32UC,Performance Monitoring Manager,Computer Software Licence Costs,28/02/13,IJ00019404,2500,LINCOLNSHIRE COUNTY COUNCIL, 
East Lindsey District Council,http://statistics.data.gov.uk/id/local-authority/32UC,Horncastle Pool Manager,Buildings Maintenance - Programmed,28/02/13,IJ00019273,748.53,SEYMOUR & CASTLE LTD, 
East Lindsey District Council,http://statistics.data.gov.uk/id/local-authority/32UC,TL Property,Buildings Maintenance - Responsive,28/02/13,IJ00019275,2237.17,SEYMOUR & CASTLE LTD, 
East Lindsey District Council,http://statistics.data.gov.uk/id/local-authority/32UC,Area Working,Fuel & Oil,28/02/13,IJ00019257,1447,WATSON PETROLEUM LTD, 
East Lindsey District Council,http://statistics.data.gov.uk/id/local-authority/32UC,BALANCE  SHEET,Payroll-Unison,28/02/13,IJ00019341,1649.2,UNISON, 
East Lindsey District Council,http://statistics.data.gov.uk/id/local-authority/32UC,TL Property,Electricity,28/02/13,IJ00019322,3080.56,SOUTHERN ELECTRIC PLC, 
East Lindsey District Council,http://statistics.data.gov.uk/id/local-authority/32UC,TL Property,Electricity,28/02/13,IJ00019322,1117.28,SOUTHERN ELECTRIC PLC, 
East Lindsey District Council,http://statistics.data.gov.uk/id/local-authority/32UC,Policy & Project Manager,Electricity,28/02/13,IJ00019322,824.48,SOUTHERN ELECTRIC PLC, 
East Lindsey District Council,http://statistics.data.gov.uk/id/local-authority/32UC,Technical Services Team Leader,Electricity,28/02/13,IJ00019322,226.98,SOUTHERN ELECTRIC PLC, 
East Lindsey District Council,http://statistics.data.gov.uk/id/local-authority/32UC,Technical Services Team Leader,Electricity,28/02/13,IJ00019322,137,SOUTHERN ELECTRIC PLC, 
East Lindsey District Council,http://statistics.data.gov.uk/id/local-authority/32UC,Technical Services Team Leader,Electricity,28/02/13,IJ00019322,279.85,SOUTHERN ELECTRIC PLC, 
East Lindsey District Council,http://statistics.data.gov.uk/id/local-authority/32UC,Meridian Facility Manager,Electricity,28/02/13,IJ00019322,4928.63,SOUTHERN ELECTRIC PLC, 
East Lindsey District Council,http://statistics.data.gov.uk/id/local-authority/32UC,Technical Services Team Leader,Electricity,28/02/13,IJ00019322,776.34,SOUTHERN ELECTRIC PLC, 
East Lindsey District Council,http://statistics.data.gov.uk/id/local-authority/32UC,Service Development Manager,Electricity,28/02/13,IJ00019322,57.78,SOUTHERN ELECTRIC PLC, 
East Lindsey District Council,http://statistics.data.gov.uk/id/local-authority/32UC,Public Conveniences,Electricity,28/02/13,IJ00019322,276.58,SOUTHERN ELECTRIC PLC, 
East Lindsey District Council,http://statistics.data.gov.uk/id/local-authority/32UC,TL Property,Electricity,28/02/13,IJ00019328,4240.43,SOUTHERN ELECTRIC PLC, 
East Lindsey District Council,http://statistics.data.gov.uk/id/local-authority/32UC,Policy & Project Manager,Electricity,28/02/13,IJ00019328,1383.65,SOUTHERN ELECTRIC PLC, 
East Lindsey District Council,http://statistics.data.gov.uk/id/local-authority/32UC,Technical Services Team Leader,Electricity,28/02/13,IJ00019328,672.82,SOUTHERN ELECTRIC PLC, 
East Lindsey District Council,http://statistics.data.gov.uk/id/local-authority/32UC,Technical Services Team Leader,Electricity,28/02/13,IJ00019328,188.74,SOUTHERN ELECTRIC PLC, 
East Lindsey District Council,http://statistics.data.gov.uk/id/local-authority/32UC,Technical Services Team Leader,Electricity,28/02/13,IJ00019328,229.49,SOUTHERN ELECTRIC PLC, 
East Lindsey District Council,http://statistics.data.gov.uk/id/local-authority/32UC,Theatre Manager,Electricity,28/02/13,IJ00019328,1397.49,SOUTHERN ELECTRIC PLC, 
East Lindsey District Council,http://statistics.data.gov.uk/id/local-authority/32UC,Meridian Facility Manager,Electricity,28/02/13,IJ00019328,655.23,SOUTHERN ELECTRIC PLC, 
East Lindsey District Council,http://statistics.data.gov.uk/id/local-authority/32UC,TL Property,Electricity,28/02/13,IJ00019328,454,SOUTHERN ELECTRIC PLC, 
East Lindsey District Council,http://statistics.data.gov.uk/id/local-authority/32UC,SM Economic Regen & Property,Electricity,28/02/13,IJ00019328,33.96,SOUTHERN ELECTRIC PLC, 
East Lindsey District Council,http://statistics.data.gov.uk/id/local-authority/32UC,Hsg Private Sector TL,Electricity,28/02/13,IJ00019328,30.19,SOUTHERN ELECTRIC PLC, 
East Lindsey District Council,http://statistics.data.gov.uk/id/local-authority/32UC,TL Property,Electricity,28/02/13,IJ00019329,407.31,SOUTHERN ELECTRIC PLC, 
East Lindsey District Council,http://statistics.data.gov.uk/id/local-authority/32UC,Technical Services Team Leader,Electricity,28/02/13,IJ00019329,299.01,SOUTHERN ELECTRIC PLC, 
East Lindsey District Council,http://statistics.data.gov.uk/id/local-authority/32UC,Technical Services Team Leader,Electricity,28/02/13,IJ00019329,39.89,SOUTHERN ELECTRIC PLC, 
East Lindsey District Council,http://statistics.data.gov.uk/id/local-authority/32UC,Theatre Manager,Electricity,28/02/13,IJ00019329,1680.9,SOUTHERN ELECTRIC PLC, 
East Lindsey District Council,http://statistics.data.gov.uk/id/local-authority/32UC,Sports Centre Manager,Electricity,28/02/13,IJ00019329,1020.49,SOUTHERN ELECTRIC PLC, 
East Lindsey District Council,http://statistics.data.gov.uk/id/local-authority/32UC,Sports Centre Manager,Electricity,28/02/13,IJ00019329,1132.78,SOUTHERN ELECTRIC PLC, 
East Lindsey District Council,http://statistics.data.gov.uk/id/local-authority/32UC,Embassy Pool Manager,Electricity,28/02/13,IJ00019329,272.88,SOUTHERN ELECTRIC PLC, 
East Lindsey District Council,http://statistics.data.gov.uk/id/local-authority/32UC,Meridian Facility Manager,Electricity,28/02/13,IJ00019329,195.94,SOUTHERN ELECTRIC PLC, 
East Lindsey District Council,http://statistics.data.gov.uk/id/local-authority/32UC,Hsg Private Sector TL,Electricity,28/02/13,IJ00019329,20.6,SOUTHERN ELECTRIC PLC, 
East Lindsey District Council,http://statistics.data.gov.uk/id/local-authority/32UC,Public Conveniences,Electricity,28/02/13,IJ00019329,109.06,SOUTHERN ELECTRIC PLC, 
East Lindsey District Council,http://statistics.data.gov.uk/id/local-authority/32UC,Policy & Project Manager,Electricity,28/02/13,IJ00019330,551.48,SOUTHERN ELECTRIC PLC, 
East Lindsey District Council,http://statistics.data.gov.uk/id/local-authority/32UC,Technical Services Team Leader,Electricity,28/02/13,IJ00019330,107.39,SOUTHERN ELECTRIC PLC, 
East Lindsey District Council,http://statistics.data.gov.uk/id/local-authority/32UC,Technical Services Team Leader,Electricity,28/02/13,IJ00019330,718.42,SOUTHERN ELECTRIC PLC, 
East Lindsey District Council,http://statistics.data.gov.uk/id/local-authority/32UC,Enforcement Team Leader,Electricity,28/02/13,IJ00019330,142.33,SOUTHERN ELECTRIC PLC, 
East Lindsey District Council,http://statistics.data.gov.uk/id/local-authority/32UC,Enforcement Team Leader,Electricity,28/02/13,IJ00019330,18.35,SOUTHERN ELECTRIC PLC, 
East Lindsey District Council,http://statistics.data.gov.uk/id/local-authority/32UC,Business Development Manager,Electricity,28/02/13,IJ00019330,1889.7,SOUTHERN ELECTRIC PLC, 
East Lindsey District Council,http://statistics.data.gov.uk/id/local-authority/32UC,Business Development Manager,Electricity,28/02/13,IJ00019330,257.16,SOUTHERN ELECTRIC PLC, 
East Lindsey District Council,http://statistics.data.gov.uk/id/local-authority/32UC,Service Development Manager,Electricity,28/02/13,IJ00019330,21.84,SOUTHERN ELECTRIC PLC, 
East Lindsey District Council,http://statistics.data.gov.uk/id/local-authority/32UC,Public Conveniences,Electricity,28/02/13,IJ00019330,529.66,SOUTHERN ELECTRIC PLC, 
East Lindsey District Council,http://statistics.data.gov.uk/id/local-authority/32UC,Public Conveniences,Electricity,28/02/13,IJ00019330,21.43,SOUTHERN ELECTRIC PLC, 
East Lindsey District Council,http://statistics.data.gov.uk/id/local-authority/32UC,TL Property,Electricity,28/02/13,IJ00019331,190.38,SOUTHERN ELECTRIC PLC, 
East Lindsey District Council,http://statistics.data.gov.uk/id/local-authority/32UC,Technical Services Team Leader,Electricity,28/02/13,IJ00019331,232.37,SOUTHERN ELECTRIC PLC, 
East Lindsey District Council,http://statistics.data.gov.uk/id/local-authority/32UC,Customer Services Manager,Electricity,28/02/13,IJ00019331,397.5,SOUTHERN ELECTRIC PLC, 
East Lindsey District Council,http://statistics.data.gov.uk/id/local-authority/32UC,Public Conveniences,Electricity,28/02/13,IJ00019331,142.58,SOUTHERN ELECTRIC PLC, 
East Lindsey District Council,http://statistics.data.gov.uk/id/local-authority/32UC,Public Conveniences,Electricity,28/02/13,IJ00019331,90.89,SOUTHERN ELECTRIC PLC, 
East Lindsey District Council,http://statistics.data.gov.uk/id/local-authority/32UC,Public Conveniences,Electricity,28/02/13,IJ00019331,146.94,SOUTHERN ELECTRIC PLC, 
East Lindsey District Council,http://statistics.data.gov.uk/id/local-authority/32UC,Theatre Manager,Performers and Entertainers Fees,28/02/13,IJ00019391,3570.2,MARTY WILDE PRODUCTIONS LTD, 
East Lindsey District Council,http://statistics.data.gov.uk/id/local-authority/32UC,Theatre Manager,Performers and Entertainers Fees,28/02/13,IJ00019391,-210,MARTY WILDE PRODUCTIONS LTD, 
East Lindsey District Council,http://statistics.data.gov.uk/id/local-authority/32UC,Enforcement Team Leader,Materials and Consumables,28/02/13,IJ00019336,4844.91,DEVLIN DECORATORS LTD, 
East Lindsey District Council,http://statistics.data.gov.uk/id/local-authority/32UC,Capital WIP,Grants and Contributions to Outside Bodies- No Service Recei,28/02/13,IJ00019235,3344.61,HALLMARK SUNDECKS LTD, 
East Lindsey District Council,http://statistics.data.gov.uk/id/local-authority/32UC,Hsg Private Sector TL,Other Income,28/02/13,IJ00019235,-633.84,HALLMARK SUNDECKS LTD, 
East Lindsey District Council,http://statistics.data.gov.uk/id/local-authority/32UC,Capital WIP,Grants and Contributions to Outside Bodies- No Service Recei,28/02/13,IJ00019237,9722.58,KES BUILDING MAINTENANCE LTD, 
East Lindsey District Council,http://statistics.data.gov.uk/id/local-authority/32UC,Hsg Bens Quality Assurance TL,Other Miscellaneous Expenses,28/02/13,IJ00019293,60.53,ALLPAY NET LTD, 
East Lindsey District Council,http://statistics.data.gov.uk/id/local-authority/32UC,Council Tax TL,Other Miscellaneous Expenses,28/02/13,IJ00019293,2226.16,ALLPAY NET LTD, 
East Lindsey District Council,http://statistics.data.gov.uk/id/local-authority/32UC,Council Tax TL,Other Miscellaneous Expenses,28/02/13,IJ00019293,4,ALLPAY NET LTD, 
East Lindsey District Council,http://statistics.data.gov.uk/id/local-authority/32UC,Debt Recovery TL,Professional & Contractors Fees,28/02/13,IJ00019210,708.07,JACOBS, 
East Lindsey District Council,http://statistics.data.gov.uk/id/local-authority/32UC,Council Tax TL,VAT Customs and Excise,28/02/13,IJ00019213,599.14,JACOBS, 
East Lindsey District Council,http://statistics.data.gov.uk/id/local-authority/32UC,Business Development Manager,Gas,28/02/13,IJ00019298,85.99,ESPO, 
East Lindsey District Council,http://statistics.data.gov.uk/id/local-authority/32UC,TL Property,Gas,28/02/13,IJ00019298,2633.5,ESPO, 
East Lindsey District Council,http://statistics.data.gov.uk/id/local-authority/32UC,TL Property,Gas,28/02/13,IJ00019298,599.35,ESPO, 
East Lindsey District Council,http://statistics.data.gov.uk/id/local-authority/32UC,TL Property,Gas,28/02/13,IJ00019298,2086.45,ESPO, 
East Lindsey District Council,http://statistics.data.gov.uk/id/local-authority/32UC,TL Property,Gas,28/02/13,IJ00019298,121.27,ESPO, 
East Lindsey District Council,http://statistics.data.gov.uk/id/local-authority/32UC,TL Property,Gas,28/02/13,IJ00019298,367.2,ESPO, 
East Lindsey District Council,http://statistics.data.gov.uk/id/local-authority/32UC,Policy & Project Manager,Gas,28/02/13,IJ00019298,457.37,ESPO, 
East Lindsey District Council,http://statistics.data.gov.uk/id/local-authority/32UC,TL Property,Gas,28/02/13,IJ00019298,304.26,ESPO, 
East Lindsey District Council,http://statistics.data.gov.uk/id/local-authority/32UC,Policy & Project Manager,Gas,28/02/13,IJ00019298,54.64,ESPO, 
East Lindsey District Council,http://statistics.data.gov.uk/id/local-authority/32UC,Sports Centre Manager,Gas,28/02/13,IJ00019298,159.95,ESPO, 
East Lindsey District Council,http://statistics.data.gov.uk/id/local-authority/32UC,Horncastle Pool Manager,Gas,28/02/13,IJ00019298,2269.76,ESPO, 
East Lindsey District Council,http://statistics.data.gov.uk/id/local-authority/32UC,Embassy Pool Manager,Gas,28/02/13,IJ00019298,3618.25,ESPO, 
East Lindsey District Council,http://statistics.data.gov.uk/id/local-authority/32UC,Theatre Manager,Gas,28/02/13,IJ00019298,1632.54,ESPO, 
East Lindsey District Council,http://statistics.data.gov.uk/id/local-authority/32UC,Sports Centre Manager,Gas,28/02/13,IJ00019298,619.37,ESPO, 
East Lindsey District Council,http://statistics.data.gov.uk/id/local-authority/32UC,Meridian Facility Manager,Gas,28/02/13,IJ00019298,332.87,ESPO, 
East Lindsey District Council,http://statistics.data.gov.uk/id/local-authority/32UC,Meridian Facility Manager,Gas,28/02/13,IJ00019298,-1.16,ESPO, 
East Lindsey District Council,http://statistics.data.gov.uk/id/local-authority/32UC,Meridian Facility Manager,Gas,28/02/13,IJ00019298,-3.43,ESPO, 
East Lindsey District Council,http://statistics.data.gov.uk/id/local-authority/32UC,Meridian Facility Manager,Gas,28/02/13,IJ00019298,290.99,ESPO, 
East Lindsey District Council,http://statistics.data.gov.uk/id/local-authority/32UC,TL Property,Gas,28/02/13,IJ00019298,8.34,ESPO, 
East Lindsey District Council,http://statistics.data.gov.uk/id/local-authority/32UC,Policy & Project Manager,Gas,28/02/13,IJ00019298,632.51,ESPO, 
East Lindsey District Council,http://statistics.data.gov.uk/id/local-authority/32UC,Public Conveniences,Gas,28/02/13,IJ00019298,43.75,ESPO, 
East Lindsey District Council,http://statistics.data.gov.uk/id/local-authority/32UC,Hsg Advice & Homelessness TL,Rent and Lease Payments,28/02/13,IJ00019261,3662.63,NEW LINX HOUSING TRUST, 
East Lindsey District Council,http://statistics.data.gov.uk/id/local-authority/32UC,Hsg Advice & Homelessness TL,Rent and Lease Payments,28/02/13,IJ00019262,1412.71,NEW LINX HOUSING TRUST, 
East Lindsey District Council,http://statistics.data.gov.uk/id/local-authority/32UC,Hsg Advice & Homelessness TL,Rent and Lease Payments,28/02/13,IJ00019263,1492.65,NEW LINX HOUSING TRUST, 
East Lindsey District Council,http://statistics.data.gov.uk/id/local-authority/32UC,Hsg Advice & Homelessness TL,Rent and Lease Payments,28/02/13,IJ00019264,1848.04,NEW LINX HOUSING TRUST, 
East Lindsey District Council,http://statistics.data.gov.uk/id/local-authority/32UC,Corporate Accounting,Professional & Contractors Fees,28/02/13,IJ00019196,650,CHRISTOPHER DONKIN, 
East Lindsey District Council,http://statistics.data.gov.uk/id/local-authority/32UC,Capital WIP,Grants and Contributions to Outside Bodies- No Service Recei,28/02/13,IJ00019239,12422.3,OBAM STAIRLIFTS, 
East Lindsey District Council,http://statistics.data.gov.uk/id/local-authority/32UC,Hsg Private Sector TL,Other Income,28/02/13,IJ00019239,-1620.25,OBAM STAIRLIFTS, 
East Lindsey District Council,http://statistics.data.gov.uk/id/local-authority/32UC,Capital WIP,Grants and Contributions to Outside Bodies- No Service Recei,28/02/13,IJ00019240,9859.32,OBAM STAIRLIFTS, 
East Lindsey District Council,http://statistics.data.gov.uk/id/local-authority/32UC,Capital WIP,Grants and Contributions to Outside Bodies- No Service Recei,28/02/13,IJ00019240,865.22,OBAM STAIRLIFTS, 
East Lindsey District Council,http://statistics.data.gov.uk/id/local-authority/32UC,Hsg Private Sector TL,Other Income,28/02/13,IJ00019240,-1412.12,OBAM STAIRLIFTS, 
East Lindsey District Council,http://statistics.data.gov.uk/id/local-authority/32UC,Environment Team Leader,Furniture and Equipment,28/02/13,IJ00019226,660,GEOTECHNICAL INSTRUMENTS UK LTD, 
East Lindsey District Council,http://statistics.data.gov.uk/id/local-authority/32UC,Theatre Manager,Performers and Entertainers Fees,28/02/13,IJ00019390,1550.18,ORIGINAL ENTERTAINMENT PROGRAMMING LTD, 
East Lindsey District Council,http://statistics.data.gov.uk/id/local-authority/32UC,Theatre Manager,Performers and Entertainers Fees,28/02/13,IJ00019390,-300,ORIGINAL ENTERTAINMENT PROGRAMMING LTD, 
East Lindsey District Council,http://statistics.data.gov.uk/id/local-authority/32UC,Corporate Accounting,Other Miscellaneous Expenses,28/02/13,IJ00019301,15213.91,GE CORPORATE PAYMENT SERVICES, 
East Lindsey District Council,http://statistics.data.gov.uk/id/local-authority/32UC,Waste Services Manager,Agency Staff,28/02/13,IJ00019250,2478.2,CLOSE INVOICE FINANCE LTD, 
East Lindsey District Council,http://statistics.data.gov.uk/id/local-authority/32UC,Waste Services Manager,Agency Staff,28/02/13,IJ00019251,2378.84,CLOSE INVOICE FINANCE LTD, 
East Lindsey District Council,http://statistics.data.gov.uk/id/local-authority/32UC,Capital WIP,Grants and Contributions to Outside Bodies- No Service Recei,28/02/13,IJ00019236,3605.42,HUMBERSTONE BUILDING MAINTENANCE, 
East Lindsey District Council,http://statistics.data.gov.uk/id/local-authority/32UC,Hsg Private Sector TL,Other Income,28/02/13,IJ00019236,-321.91,HUMBERSTONE BUILDING MAINTENANCE, 
East Lindsey District Council,http://statistics.data.gov.uk/id/local-authority/32UC,TL IT - Infrastructure,External Printing and Design Costs,28/02/13,IJ00019397,1083.68,RICOH UK LTD, 
East Lindsey District Council,http://statistics.data.gov.uk/id/local-authority/32UC,TL IT - Infrastructure,External Printing and Design Costs,28/02/13,IJ00019398,7505.13,RICOH UK LTD, 
East Lindsey District Council,http://statistics.data.gov.uk/id/local-authority/32UC,TL IT - Infrastructure,External Printing and Design Costs,28/02/13,IJ00019399,670.83,RICOH UK LTD, 
East Lindsey District Council,http://statistics.data.gov.uk/id/local-authority/32UC,TL IT - Infrastructure,External Printing and Design Costs,28/02/13,IJ00019403,1052.58,RICOH UK LTD, 
East Lindsey District Council,http://statistics.data.gov.uk/id/local-authority/32UC,BALANCE  SHEET,Payroll-Gmbatu,28/02/13,IJ00019344,724.14,GMB NATIONAL ADMINISTRATION UNIT, 
East Lindsey District Council,http://statistics.data.gov.uk/id/local-authority/32UC,TL IT - Network & Comms,Computer Hardware Maintenance,28/02/13,IJ00019185,1958,WEST LINDSEY DISTRICT COUNCIL, 
East Lindsey District Council,http://statistics.data.gov.uk/id/local-authority/32UC,TL IT - Network & Comms,Computer Hardware Maintenance,28/02/13,IJ00019186,713.57,WEST LINDSEY DISTRICT COUNCIL, 
East Lindsey District Council,http://statistics.data.gov.uk/id/local-authority/32UC,Development Control,Banking Charges,28/02/13,IJ00019297,3.58,CAPITA BUSINESS SERVICES LTD, 
East Lindsey District Council,http://statistics.data.gov.uk/id/local-authority/32UC,Enforcement Team Leader,Banking Charges,28/02/13,IJ00019297,10.48,CAPITA BUSINESS SERVICES LTD, 
East Lindsey District Council,http://statistics.data.gov.uk/id/local-authority/32UC,Corporate Accounting,Banking Charges,28/02/13,IJ00019297,1394.54,CAPITA BUSINESS SERVICES LTD, 
East Lindsey District Council,http://statistics.data.gov.uk/id/local-authority/32UC,Corporate Accounting,Banking Charges,28/02/13,IJ00019297,153.99,CAPITA BUSINESS SERVICES LTD, 
East Lindsey District Council,http://statistics.data.gov.uk/id/local-authority/32UC,Corporate Accounting,Banking Charges,28/02/13,IJ00019297,2767.77,CAPITA BUSINESS SERVICES LTD, 
East Lindsey District Council,http://statistics.data.gov.uk/id/local-authority/32UC,Corporate Accounting,Banking Charges,28/02/13,IJ00019297,68.09,CAPITA BUSINESS SERVICES LTD, 
East Lindsey District Council,http://statistics.data.gov.uk/id/local-authority/32UC,Corporate Accounting,Banking Charges,28/02/13,IJ00019297,60.6,CAPITA BUSINESS SERVICES LTD, 
East Lindsey District Council,http://statistics.data.gov.uk/id/local-authority/32UC,Democracy Manager,Grants and Contributions to Outside Bodies- No Service Recei,28/02/13,IJ00019222,800,NEW YORK LECTURE HALL MANAGERS, 
East Lindsey District Council,http://statistics.data.gov.uk/id/local-authority/32UC,Meridian Facility Manager,Buildings Maintenance - Responsive,28/02/13,IJ00019285,1100,SLEAFORD BUILDING SERVICES LTD, 
East Lindsey District Council,http://statistics.data.gov.uk/id/local-authority/32UC,Meridian Facility Manager,Buildings Maintenance - Programmed,28/02/13,IJ00019286,1366.81,SLEAFORD BUILDING SERVICES LTD, 
East Lindsey District Council,http://statistics.data.gov.uk/id/local-authority/32UC,Meridian Facility Manager,Buildings Maintenance - Programmed,28/02/13,IJ00019288,2983.64,VARIOPOOL B V, 
East Lindsey District Council,http://statistics.data.gov.uk/id/local-authority/32UC,Improvement & Development Mngr,Maintenance,28/02/13,IJ00019394,1244.2,WOODTHORPE BODYWORKS LTD, 
East Lindsey District Council,http://statistics.data.gov.uk/id/local-authority/32UC,Improvement & Development Mngr,Maintenance,28/02/13,IJ00019395,2970,WOODTHORPE BODYWORKS LTD, 
East Lindsey District Council,http://statistics.data.gov.uk/id/local-authority/32UC,TL Property,Buildings Maintenance - Programmed,28/02/13,IJ00019284,1285,RIELLO UPS LTD, 
East Lindsey District Council,http://statistics.data.gov.uk/id/local-authority/32UC,Area Working,Agency Staff,28/02/13,IJ00019385,705.58,THE WORKSHOP (WISBECH) LIMITED, 
East Lindsey District Council,http://statistics.data.gov.uk/id/local-authority/32UC,Area Working,Agency Staff,28/02/13,IJ00019385,705.57,THE WORKSHOP (WISBECH) LIMITED, 
East Lindsey District Council,http://statistics.data.gov.uk/id/local-authority/32UC,Area Working,Agency Staff,28/02/13,IJ00019386,737.27,THE WORKSHOP (WISBECH) LIMITED, 
East Lindsey District Council,http://statistics.data.gov.uk/id/local-authority/32UC,Area Working,Agency Staff,28/02/13,IJ00019386,737.26,THE WORKSHOP (WISBECH) LIMITED, 
East Lindsey District Council,http://statistics.data.gov.uk/id/local-authority/32UC,Cultural & Related Services,Other Miscellaneous Expenses,28/02/13,IJ00019194,1295,MAGNETIC EVENTS LTD, 
East Lindsey District Council,http://statistics.data.gov.uk/id/local-authority/32UC,Council Tax TL,Court Costs,28/02/13,IJ00019374,1116,CENTRAL FINANCE UNIT, 
East Lindsey District Council,http://statistics.data.gov.uk/id/local-authority/32UC,Debt Recovery TL,Court Costs,28/02/13,IJ00019374,72,CENTRAL FINANCE UNIT, 
East Lindsey District Council,http://statistics.data.gov.uk/id/local-authority/32UC,IT Manager,Computer Hardware Purchase,28/02/13,IJ00019206,2780,ADDAMS OFFICE SUPPLIES LTD, 
East Lindsey District Council,http://statistics.data.gov.uk/id/local-authority/32UC,Housing Support TL,Rent and Lease Payments,28/02/13,IJ00019393,937.5,TOTEMIC LTD, 
East Lindsey District Council,http://statistics.data.gov.uk/id/local-authority/32UC,Cultural & Related Services,Voluntary associations,28/02/13,IJ00019356,67720.79,WOODHALL SPA COTTAGE MUSEUM, 
East Lindsey District Council,http://statistics.data.gov.uk/id/local-authority/32UC,Capital WIP,Grants and Contributions to Outside Bodies- No Service Recei,28/02/13,IJ00019243,3161.98,HARRIS BUILDING SERVICES, 
East Lindsey District Council,http://statistics.data.gov.uk/id/local-authority/32UC,Hsg Private Sector TL,Other Income,28/02/13,IJ00019243,-282.32,HARRIS BUILDING SERVICES, 
East Lindsey District Council,http://statistics.data.gov.uk/id/local-authority/32UC,Waste Services Manager,Staff Training Expenses,28/02/13,IJ00019363,645.5,TRANSED TRAINING LTD, 
East Lindsey District Council,http://statistics.data.gov.uk/id/local-authority/32UC,Waste Services Manager,Staff Training Expenses,28/02/13,IJ00019363,176.2,TRANSED TRAINING LTD, 
East Lindsey District Council,http://statistics.data.gov.uk/id/local-authority/32UC,Democracy Manager,Grants and Contributions to Outside Bodies- No Service Recei,28/02/13,IJ00019227,500,LOUTH & DISTRICT SENIORS FORUM, 
East Lindsey District Council,http://statistics.data.gov.uk/id/local-authority/32UC,TL Property,Buildings Maintenance - Responsive,28/02/13,IJ00019300,87.5,J TOMLINSON LTD, 
East Lindsey District Council,http://statistics.data.gov.uk/id/local-authority/32UC,TL Property,Buildings Maintenance - Responsive,28/02/13,IJ00019300,121.13,J TOMLINSON LTD, 
East Lindsey District Council,http://statistics.data.gov.uk/id/local-authority/32UC,Policy & Project Manager,Buildings Maintenance - Responsive,28/02/13,IJ00019300,20.92,J TOMLINSON LTD, 
East Lindsey District Council,http://statistics.data.gov.uk/id/local-authority/32UC,Policy & Project Manager,Buildings Maintenance - Responsive,28/02/13,IJ00019300,20.92,J TOMLINSON LTD, 
East Lindsey District Council,http://statistics.data.gov.uk/id/local-authority/32UC,Policy & Project Manager,Buildings Maintenance - Responsive,28/02/13,IJ00019300,86.3,J TOMLINSON LTD, 
East Lindsey District Council,http://statistics.data.gov.uk/id/local-authority/32UC,Building Control,Buildings Maintenance - Responsive,28/02/13,IJ00019300,150.66,J TOMLINSON LTD, 
East Lindsey District Council,http://statistics.data.gov.uk/id/local-authority/32UC,Embassy Pool Manager,Buildings Maintenance - Responsive,28/02/13,IJ00019300,159.69,J TOMLINSON LTD, 
East Lindsey District Council,http://statistics.data.gov.uk/id/local-authority/32UC,Embassy Pool Manager,Buildings Maintenance - Responsive,28/02/13,IJ00019300,351.23,J TOMLINSON LTD, 
East Lindsey District Council,http://statistics.data.gov.uk/id/local-authority/32UC,TL Property,Buildings Maintenance - Responsive,28/02/13,IJ00019300,430.17,J TOMLINSON LTD, 
East Lindsey District Council,http://statistics.data.gov.uk/id/local-authority/32UC,Service Development Manager,Buildings Maintenance - Responsive,28/02/13,IJ00019300,606.96,J TOMLINSON LTD, 
East Lindsey District Council,http://statistics.data.gov.uk/id/local-authority/32UC,TL Property,Buildings Maintenance - Responsive,28/02/13,IJ00019300,41.84,J TOMLINSON LTD, 
East Lindsey District Council,http://statistics.data.gov.uk/id/local-authority/32UC,Service Development Manager,Buildings Maintenance - Responsive,28/02/13,IJ00019300,1082.23,J TOMLINSON LTD, 
East Lindsey District Council,http://statistics.data.gov.uk/id/local-authority/32UC,Service Development Manager,Buildings Maintenance - Responsive,28/02/13,IJ00019300,71.26,J TOMLINSON LTD, 
East Lindsey District Council,http://statistics.data.gov.uk/id/local-authority/32UC,Public Conveniences,Buildings Maintenance - Responsive,28/02/13,IJ00019300,415.48,J TOMLINSON LTD, 
East Lindsey District Council,http://statistics.data.gov.uk/id/local-authority/32UC,Public Conveniences,Buildings Maintenance - Responsive,28/02/13,IJ00019300,93.6,J TOMLINSON LTD, 
East Lindsey District Council,http://statistics.data.gov.uk/id/local-authority/32UC,Public Conveniences,Buildings Maintenance - Responsive,28/02/13,IJ00019300,31.38,J TOMLINSON LTD, 
East Lindsey District Council,http://statistics.data.gov.uk/id/local-authority/32UC,Public Conveniences,Buildings Maintenance - Responsive,28/02/13,IJ00019300,47.07,J TOMLINSON LTD, 
East Lindsey District Council,http://statistics.data.gov.uk/id/local-authority/32UC,Public Conveniences,Buildings Maintenance - Responsive,28/02/13,IJ00019300,82.79,J TOMLINSON LTD, 
East Lindsey District Council,http://statistics.data.gov.uk/id/local-authority/32UC,Public Conveniences,Buildings Maintenance - Responsive,28/02/13,IJ00019300,50.93,J TOMLINSON LTD, 
East Lindsey District Council,http://statistics.data.gov.uk/id/local-authority/32UC,Public Conveniences,Buildings Maintenance - Responsive,28/02/13,IJ00019300,26.15,J TOMLINSON LTD, 
East Lindsey District Council,http://statistics.data.gov.uk/id/local-authority/32UC,Capital WIP,Grants and Contributions to Outside Bodies- No Service Recei,28/02/13,IJ00019232,5000,THM CONSTRUCTION, 
East Lindsey District Council,http://statistics.data.gov.uk/id/local-authority/32UC,Capital WIP,Grants and Contributions to Outside Bodies- No Service Recei,28/02/13,IJ00019234,4316.15,THM CONSTRUCTION, 
East Lindsey District Council,http://statistics.data.gov.uk/id/local-authority/32UC,Hsg Private Sector TL,Other Income,28/02/13,IJ00019234,-385.37,THM CONSTRUCTION, 
East Lindsey District Council,http://statistics.data.gov.uk/id/local-authority/32UC,Horncastle Pool Manager,Water and Sewerage Charges,28/02/13,IJ00019314,4502.61,ANGLIAN WATER, 
East Lindsey District Council,http://statistics.data.gov.uk/id/local-authority/32UC,Meridian Facility Manager,Water and Sewerage Charges,28/02/13,IJ00019321,798.57,ANGLIAN WATER, 
East Lindsey District Council,http://statistics.data.gov.uk/id/local-authority/32UC,Embassy Pool Manager,Water and Sewerage Charges,28/02/13,IJ00019324,1491.21,ANGLIAN WATER, 
East Lindsey District Council,http://statistics.data.gov.uk/id/local-authority/32UC,Business Development Manager,Water and Sewerage Charges,28/02/13,IJ00019326,2360.22,ANGLIAN WATER, 
East Lindsey District Council,http://statistics.data.gov.uk/id/local-authority/32UC,Waste Services Manager,Materials and Consumables,28/02/13,IJ00019198,6393.52,ESE LTD, 
East Lindsey District Council,http://statistics.data.gov.uk/id/local-authority/32UC,Waste Services Manager,Materials and Consumables,28/02/13,IJ00019255,5278.2,ESE LTD, 
East Lindsey District Council,http://statistics.data.gov.uk/id/local-authority/32UC,Waste Services Manager,Materials and Consumables,28/02/13,IJ00019334,14388.48,ESE LTD, 
East Lindsey District Council,http://statistics.data.gov.uk/id/local-authority/32UC,Business Development Manager,Other Miscellaneous Expenses,28/02/13,IJ00019259,1050,NEW MIND INTERNET CONSULTANCY LTD, 
East Lindsey District Council,http://statistics.data.gov.uk/id/local-authority/32UC,TL Property,Professional & Contractors Fees,28/02/13,IJ00019377,184,G4S SECURE SOLUTIONS (UK) LTD, 
East Lindsey District Council,http://statistics.data.gov.uk/id/local-authority/32UC,TL Property,Professional & Contractors Fees,28/02/13,IJ00019377,184,G4S SECURE SOLUTIONS (UK) LTD, 
East Lindsey District Council,http://statistics.data.gov.uk/id/local-authority/32UC,TL Property,Professional & Contractors Fees,28/02/13,IJ00019377,184,G4S SECURE SOLUTIONS (UK) LTD, 
East Lindsey District Council,http://statistics.data.gov.uk/id/local-authority/32UC,TL Property,Professional & Contractors Fees,28/02/13,IJ00019377,184,G4S SECURE SOLUTIONS (UK) LTD, 
East Lindsey District Council,http://statistics.data.gov.uk/id/local-authority/32UC,TL Property,Professional & Contractors Fees,28/02/13,IJ00019377,184,G4S SECURE SOLUTIONS (UK) LTD, 
East Lindsey District Council,http://statistics.data.gov.uk/id/local-authority/32UC,Public Conveniences,VAT Customs and Excise,28/02/13,IJ00019337,2785.13,Langwith Builders Ltd, 
East Lindsey District Council,http://statistics.data.gov.uk/id/local-authority/32UC,Waste Services Manager,Maintenance,28/02/13,IJ00019371,664.97,MAY GURNEY FLEET & PASSENGER SERVICES LTD, 
East Lindsey District Council,http://statistics.data.gov.uk/id/local-authority/32UC,Policy & Project Manager,Grants and Contributions- Where a Service is Received,28/02/13,IJ00019332,800,HOWARD HEELEY - TA DOWN TO EARTH PROMOTIONS, 
East Lindsey District Council,http://statistics.data.gov.uk/id/local-authority/32UC,Enforcement Team Leader,Clothing Uniforms And Laundry,28/02/13,IJ00019204,4492.05,Keltic Clothing, 
East Lindsey District Council,http://statistics.data.gov.uk/id/local-authority/32UC,Communications Manager,Advertising - Legal And Public,28/02/13,IJ00019197,1500,LOCAL WORLD, 
East Lindsey District Council,http://statistics.data.gov.uk/id/local-authority/32UC,TL Property,Professional & Contractors Fees,28/02/13,IJ00019248,562.5,Louth Education Community Interest Company, 
East Lindsey District Council,http://statistics.data.gov.uk/id/local-authority/32UC,Democracy Manager,Grants and Contributions to Outside Bodies- No Service Recei,28/02/13,IJ00019223,600,Horncastle Twinning Committee, 
East Lindsey District Council,http://statistics.data.gov.uk/id/local-authority/32UC,Capital WIP,Grants and Contributions to Outside Bodies- No Service Recei,28/02/13,IJ00019244,4509.56,Total Hygiene Ltd, 
East Lindsey District Council,http://statistics.data.gov.uk/id/local-authority/32UC,Hsg Private Sector TL,Other Income,28/02/13,IJ00019244,-2112.13,Total Hygiene Ltd, 
East Lindsey District Council,http://statistics.data.gov.uk/id/local-authority/32UC,Business Development Manager,Grants and Contributions to Outside Bodies- No Service Recei,28/02/13,IJ00019335,3174.59,Lincolshire Shooting Centre, 
